Workbook

Sheet Caneva Etats Inventaire
B1: ETAPE PREPARATOIRE AVANT CRÉATION DES ETATS D'INVENTAIRE
A8: 1. Centralisation (remplissage des fiches de pointage) 2. Dupliquer la feuille de centralisation 3.Supprimer les entetes et les lignes vides de toutes les pages a l'aide de la macro appropriee. 4. Filtrage en vue d'extraire les donnees dans les colonnes "Avaries" et "Remarque" 5. Extraction des (fournitures, Consommables informatique, materiel informatique, mobilier de bureau etc…) 6. Filtrage des colonnes "Ecarts" en vue d'eliminer les articles dont le stock ordinateur est egal au stock physique. 7. Dupliquer cette feuille avant de passer a l'etape suivante. 8. Inserer une colonne "Famille" avant la colonne "Code" 9. Ecrire ou recopier la formule appropriee dans la colonne "Famille" 10. Regrouper les articles par famille en utilisant la macro appropriee. 11.Calculer les sous-totaux en utilisant la formule Sous-Total de l'onglet "Donnees" 12. Proceder a la regularisation.

Sheet Feuil1
A1: Famille | B1: Designations
A3: =IF(LEFT($B3,SEARCH(" ",$B3&" "))=LEFT($B2,SEARCH(" ",$B2&" ")),N(A2),N(A2)+1) -> 1 | B3: bonbons rouge
A4: 1 | B4: bonbons rouge caramel
A5: 1 | B5: bonbons vert
A6: 1 | B6: bonbons vert citron
A7: 2 | B7: chocolats croustillant noir
A8: 2 | B8: chocolats croustillant
A9: 2 | B9: chocolats en pate
A10: 3 | B10: sucre en poudre de 1kg
A11: 3 | B11: sucre en paquet de 1,5Kg
A12: 3 | B12: sucre en paquet de 2Kg
A13: 3 | B13: sucre en paquet de 2,5Kg
A14: 4 | B14: fromage camenbert
A15: 4 | B15: fromage de Belgique
A16: 4 | B16: fromage de Belgique
A17: 5 | B17: oranges du Cameroun
A18: 5 | B18: oranges filet de 25kg
A19: 5 | B19: oranges importe
A20: 5 | B20: oranges importe
A21: 5 | B21: oranges de France

Sheet Feuil2
A1: Familles | B1: CODES | C1: DESIGNATIONS | D1: S. O | E1: P. U | F1: S. PHY | G1: AVARIES | H1: + | I1: - | J1: OBSER
A3: =IF(LEFT($C3,SEARCH(" ",$C3&" "))=LEFT($C2,SEARCH(" ",$C2&" ")),N(A2),N(A2)+1) -> 1 | B3: A488 | C3: ABATTANT WC BLANC LOURD | D3: 167 | E3: 4500 | F3: 146 | H3: =IF(F3>D3,F3-D3,"") ->  | I3: =IF(F3<D3,D3-F3,"") -> 21
A4: =IF(LEFT($C4,SEARCH(" ",$C4&" "))=LEFT($C3,SEARCH(" ",$C3&" ")),N(A3),N(A3)+1) -> 1 | B4: A5 | C4: ABATTANT WC BLEU | D4: 5 | E4: 2500 | F4: 19 | G4: 7 | H4: 14
A5: =IF(LEFT($C5,SEARCH(" ",$C5&" "))=LEFT($C4,SEARCH(" ",$C4&" ")),N(A4),N(A4)+1) -> 1 | B5: A462 | C5: ABATTANT WC LOURD ROSE | D5: 13 | E5: 2825 | F5: 0 | I5: 13
A6: Total 1 | H6: =SUBTOTAL(9,H3:H5) -> 14 | I6: =SUBTOTAL(9,I3:I5) -> 34
A9: =IF(LEFT($C9,SEARCH(" ",$C9&" "))=LEFT($C5,SEARCH(" ",$C5&" ")),N(A5),N(A5)+1) -> 2 | B9: A10 | C9: ACIDE CHLORIDRIQUE 1L | D9: 6 | E9: 500 | F9: 10 | G9: 10 | H9: 4
A10: Total 2 | H10: =SUBTOTAL(9,H9:H9) -> 4 | I10: =SUBTOTAL(9,I9:I9) -> 0
A13: =IF(LEFT($C13,SEARCH(" ",$C13&" "))=LEFT($C9,SEARCH(" ",$C9&" ")),N(A9),N(A9)+1) -> 3 | B13: A456 | C13: AGRAFE 8/4 | D13: 20 | E13: 170 | I13: 20 | J13: BPS
A14: Total 3 | H14: =SUBTOTAL(9,H13:H13) -> 0 | I14: =SUBTOTAL(9,I13:I13) -> 20
A17: =IF(LEFT($C17,SEARCH(" ",$C17&" "))=LEFT($C13,SEARCH(" ",$C13&" ")),N(A13),N(A13)+1) -> 4 | B17: A321 | C17: AMPOULE E14 POINTU 40W EMKAY | D17: 0 | E17: 60 | F17: 101 | G17: 101 | H17: 101
A18: =IF(LEFT($C18,SEARCH(" ",$C18&" "))=LEFT($C17,SEARCH(" ",$C17&" ")),N(A17),N(A17)+1) -> 4 | B18: A271 | C18: AMPOULE PHILIPS B22 60W | D18: 0 | E18: 200 | F18: 20 | G18: 14 | H18: 20
A19: 4 | B19: A51 | C19: AMPOULE B22 TESLA BLANC 40W | D19: 458 | E19: 100 | F19: 332 | G19: 132 | I19: 126
A20: 4 | B20: A546 | C20: AMPOULE ECO LED B22 REF E02B02 BLANC 7W | D20: 120 | E20: 3000 | F20: 126 | H20: 6
A21: 4 | B21: A458 | C21: AMPOULE ECO PHILIP E27 | D21: 44 | E21: 1200 | F21: 35 | G21: 11 | I21: 9
A22: 4 | B22: A543 | C22: AMPOULE ECO PHILIPS E27 11W 3U PM | D22: 1 | E22: 1500 | F22: 0 | I22: 1
A23: 4 | B23: A459 | C23: AMPOULE ECO PHILIPS E27 14W | D23: 36 | E23: 1500 | F23: 0 | I23: 36
A24: 4 | B24: A566 | C24: AMPOULE ECO VIRONY B22 ES-003 DE 105W | D24: 0 | E24: 3000 | F24: 7 | G24: 7 | H24: 7
A25: 4 | B25: A216 | C25: AMPOULE ECONOMIQUE E27 2U 18W ESL (CJB) | D25: 36 | E25: 500 | F25: 20 | G25: 8 | I25: 16
A26: 4 | B26: A453 | C26: AMPOULE MAF DIRECT 450W | D26: 8 | E26: 2070 | F26: 6 | I26: 2
A27: 4 | B27: A192 | C27: AMPOULE MAF E27 DIRECT 250W | D27: 45 | E27: 1350 | F27: 66 | G27: 56 | H27: 21
A28: 4 | B28: A309 | C28: AMPOULE MAF E40 INDIRECT 250W | D28: 1 | E28: 1220 | F28: 42 | G28: 2 | H28: 41
A29: 4 | B29: A282 | C29: AMPOULE SPOT E27 60W R80 TOUTES COULEURS | D29: 425 | E29: 400 | F29: 560 | G29: 1 | H29: 135
A30: 4 | B30: A280 | C30: AMPOULE SPOT E27 40W R80 | D30: 206 | E30: 350 | F30: 175 | G30: 1 | I30: 31
A31: 4 | B31: A91 | C31: AMPOULE SPOT E27 BLANC 75W R60 | D31: 391 | E31: 400 | F31: 300 | I31: 91
A32: Total 4 | H32: =SUBTOTAL(9,H17:H31) -> 331 | I32: =SUBTOTAL(9,I17:I31) -> 312
A35: =IF(LEFT($C35,SEARCH(" ",$C35&" "))=LEFT($C31,SEARCH(" ",$C31&" ")),N(A31),N(A31)+1) -> 5 | B35: A415 | C35: ANTICHOC ALU DE 60 CM DROIT | D35: 92 | E35: 2200 | F35: 123 | H35: 31
A36: Total 5 | H36: =SUBTOTAL(9,H35:H35) -> 31 | I36: =SUBTOTAL(9,I35:I35) -> 0
A39: =IF(LEFT($C39,SEARCH(" ",$C39&" "))=LEFT($C35,SEARCH(" ",$C35&" ")),N(A35),N(A35)+1) -> 6 | B39: A111 | C39: ANTI-CHOC ALU DE 60 CM | D39: 125 | E39: 2000 | F39: 104 | I39: 21
A40: =IF(LEFT($C40,SEARCH(" ",$C40&" "))=LEFT($C39,SEARCH(" ",$C39&" ")),N(A39),N(A39)+1) -> 6 | B40: A585 | C40: ANTI-CHOC ALU DROIT 80CM | D40: 59 | E40: 3500 | F40: 56 | I40: 3
A41: Total 6 | H41: =SUBTOTAL(9,H39:H40) -> 0 | I41: =SUBTOTAL(9,I39:I40) -> 24
A44: =IF(LEFT($C44,SEARCH(" ",$C44&" "))=LEFT($C40,SEARCH(" ",$C40&" ")),N(A40),N(A40)+1) -> 7 | B44: A394 | C44: ANTI-ROUILLE BR 1.2KG CAMERO PEINT | D44: 237 | E44: 1750 | F44: 238 | H44: 1
A45: =IF(LEFT($C45,SEARCH(" ",$C45&" "))=LEFT($C44,SEARCH(" ",$C44&" ")),N(A44),N(A44)+1) -> 7 | B45: A259 | C45: ANTI-ROUILLE BRUN 1KG MPCC | D45: 110 | E45: 1950 | F45: 111 | G45: 1 | H45: 1
A46: =IF(LEFT($C46,SEARCH(" ",$C46&" "))=LEFT($C45,SEARCH(" ",$C45&" ")),N(A45),N(A45)+1) -> 7 | B46: A286 | C46: ANTI-ROUILLE BRUN EN 5KG MPCC | D46: 16 | E46: 9900 | F46: 25 | H46: 9
A47: =IF(LEFT($C47,SEARCH(" ",$C47&" "))=LEFT($C46,SEARCH(" ",$C46&" ")),N(A46),N(A46)+1) -> 7 | B47: A204 | C47: ANTI-ROUILLE ORANGE 2KG MPCC | D47: 1 | E47: 4300 | F47: 0 | I47: 1
A48: =IF(LEFT($C48,SEARCH(" ",$C48&" "))=LEFT($C47,SEARCH(" ",$C47&" ")),N(A47),N(A47)+1) -> 7 | B48: A275 | C48: ANTI-ROUILLE ORANGE DE 5 KG MPCC | D48: 9 | E48: 10800 | F48: 0 | I48: 9
A49: Total 7 | H49: =SUBTOTAL(9,H44:H48) -> 11 | I49: =SUBTOTAL(9,I44:I48) -> 10
A52: =IF(LEFT($C52,SEARCH(" ",$C52&" "))=LEFT($C48,SEARCH(" ",$C48&" ")),N(A48),N(A48)+1) -> 8 | B52: A370 | C52: ARRACHE CLOU DE 40 | D52: 37 | E52: 900 | F52: 32 | I52: 5
A53: =IF(LEFT($C53,SEARCH(" ",$C53&" "))=LEFT($C52,SEARCH(" ",$C52&" ")),N(A52),N(A52)+1) -> 8 | B53: A125 | C53: ARRACHE CLOU DE 50 | D53: 6 | E53: 1500 | F53: 9 | H53: 3
A54: =IF(LEFT($C54,SEARCH(" ",$C54&" "))=LEFT($C53,SEARCH(" ",$C53&" ")),N(A53),N(A53)+1) -> 8 | B54: A126 | C54: ARRACHE CLOU DE 60 | D54: 34 | E54: 1300 | F54: 36 | H54: 2
A55: =IF(LEFT($C55,SEARCH(" ",$C55&" "))=LEFT($C54,SEARCH(" ",$C54&" ")),N(A54),N(A54)+1) -> 8 | B55: A127 | C55: ARRACHE CLOU DE 70 | D55: 74 | E55: 2200 | F55: 6 | I55: 68
A56: =IF(LEFT($C56,SEARCH(" ",$C56&" "))=LEFT($C55,SEARCH(" ",$C55&" ")),N(A55),N(A55)+1) -> 8 | B56: A128 | C56: ARRACHE CLOU DE 80 | D56: 36 | E56: 2000 | F56: 60 | H56: 24
A57: Total 8 | H57: =SUBTOTAL(9,H52:H56) -> 29 | I57: =SUBTOTAL(9,I52:I56) -> 73
A60: =IF(LEFT($C60,SEARCH(" ",$C60&" "))=LEFT($C56,SEARCH(" ",$C56&" ")),N(A56),N(A56)+1) -> 9 | B60: A177 | C60: ATTACHE ELECT DE 14/100P | D60: 68 | E60: 500 | F60: 49 | I60: 19
A61: =IF(LEFT($C61,SEARCH(" ",$C61&" "))=LEFT($C60,SEARCH(" ",$C60&" ")),N(A60),N(A60)+1) -> 9 | B61: A170 | C61: ATTACHE ELECT DE 5/100P | D61: 4 | E61: 700 | F61: 0 | I61: 4
A62: =IF(LEFT($C62,SEARCH(" ",$C62&" "))=LEFT($C61,SEARCH(" ",$C61&" ")),N(A61),N(A61)+1) -> 9 | B62: A172 | C62: ATTACHE ELECT DE 7/100PCES | D62: 82 | E62: 125 | F62: 70 | I62: 12
A63: =IF(LEFT($C63,SEARCH(" ",$C63&" "))=LEFT($C62,SEARCH(" ",$C62&" ")),N(A62),N(A62)+1) -> 9 | B63: A174 | C63: ATTACHE ELECT DE 9/100PCES | D63: 0 | E63: 150 | F63: 3 | H63: 3
A64: Total 9 | H64: =SUBTOTAL(9,H60:H63) -> 3 | I64: =SUBTOTAL(9,I60:I63) -> 35
A67: =IF(LEFT($C67,SEARCH(" ",$C67&" "))=LEFT($C63,SEARCH(" ",$C63&" ")),N(A63),N(A63)+1) -> 10 | B67: A301 | C67: AUGE MACON PROGON DE 35 L REF 7735 | D67: 1 | E67: 6000 | F67: 0 | H67: =IF(F67>D67,F67-D67,"") ->  | I67: =IF(F67<D67,D67-F67,"") -> 1
A68: Total 10 | H68: =SUBTOTAL(9,H67:H67) -> 0 | I68: =SUBTOTAL(9,I67:I67) -> 1
A71: =IF(LEFT($C71,SEARCH(" ",$C71&" "))=LEFT($C67,SEARCH(" ",$C67&" ")),N(A67),N(A67)+1) -> 11 | B71: B33 | C71: BALAI CANTONNIER NYLON ROUGE | D71: 243 | E71: 2500 | F71: 99 | H71: =IF(F71>D71,F71-D71,"") ->  | I71: =IF(F71<D71,D71-F71,"") -> 144
A72: Total 11 | H72: =SUBTOTAL(9,H71:H71) -> 0 | I72: =SUBTOTAL(9,I71:I71) -> 144
A75: =IF(LEFT($C75,SEARCH(" ",$C75&" "))=LEFT($C71,SEARCH(" ",$C71&" ")),N(A71),N(A71)+1) -> 12 | B75: B61 | C75: BANDE ADHESIVE DE 25 CM | D75: 307 | E75: 200 | F75: 7 | H75: =IF(F75>D75,F75-D75,"") ->  | I75: =IF(F75<D75,D75-F75,"") -> 300
A76: =IF(LEFT($C76,SEARCH(" ",$C76&" "))=LEFT($C75,SEARCH(" ",$C75&" ")),N(A75),N(A75)+1) -> 12 | B76: B646 | C76: BANDE THERMIQUE 57X40 | D76: 79 | E76: 300 | H76: =IF(F76>D76,F76-D76,"") ->  | I76: =IF(F76<D76,D76-F76,"") -> 79 | J76: BPS
A77: =IF(LEFT($C77,SEARCH(" ",$C77&" "))=LEFT($C76,SEARCH(" ",$C76&" ")),N(A76),N(A76)+1) -> 12 | B77: B670 | C77: BANDE THERMIQUE 57X56 | D77: 13 | E77: 1500 | H77: =IF(F77>D77,F77-D77,"") ->  | I77: =IF(F77<D77,D77-F77,"") -> 13 | J77: BPS
A78: Total 12 | H78: =SUBTOTAL(9,H75:H77) -> 0 | I78: =SUBTOTAL(9,I75:I77) -> 392
A81: =IF(LEFT($C81,SEARCH(" ",$C81&" "))=LEFT($C77,SEARCH(" ",$C77&" ")),N(A77),N(A77)+1) -> 13 | B81: B1092 | C81: BARRE A MINE DE 1.750M FRANCAIS | D81: 5 | E81: 22100 | F81: 4 | H81: =IF(F81>D81,F81-D81,"") ->  | I81: =IF(F81<D81,D81-F81,"") -> 1
A82: =IF(LEFT($C82,SEARCH(" ",$C82&" "))=LEFT($C81,SEARCH(" ",$C81&" ")),N(A81),N(A81)+1) -> 13 | B82: B75 | C82: BARRE A MINE DE 1.80 M | D82: 20 | E82: 10300 | F82: 3 | I82: 17
A83: =IF(LEFT($C83,SEARCH(" ",$C83&" "))=LEFT($C82,SEARCH(" ",$C82&" ")),N(A82),N(A82)+1) -> 13 | B83: B76 | C83: BARRE A MINE DE 2M | D83: 19 | E83: 11000 | F83: 38 | H83: 19
A84: =IF(LEFT($C84,SEARCH(" ",$C84&" "))=LEFT($C83,SEARCH(" ",$C83&" ")),N(A83),N(A83)+1) -> 13 | B84: B1093 | C84: BARRE AMINE DE 2M FRANCAIS | D84: 5 | E84: 28250 | F84: 4 | I84: 1
A85: Total 13 | H85: =SUBTOTAL(9,H81:H84) -> 19 | I85: =SUBTOTAL(9,I81:I84) -> 19
A88: =IF(LEFT($C88,SEARCH(" ",$C88&" "))=LEFT($C84,SEARCH(" ",$C84&" ")),N(A84),N(A84)+1) -> 14 | B88: B611 | C88: BATICIT A EAU BLANC DE 25 KG IMP. | D88: 1 | E88: 10500 | F88: 0 | I88: 1
A89: Total 14 | H89: =SUBTOTAL(9,H88:H88) -> 0 | I89: =SUBTOTAL(9,I88:I88) -> 1
A92: =IF(LEFT($C92,SEARCH(" ",$C92&" "))=LEFT($C88,SEARCH(" ",$C88&" ")),N(A88),N(A88)+1) -> 15 | B92: B192 | C92: BATILAC A HUILE GRIS FONCE DE 2,5 KG | D92: 0 | E92: 3000 | F92: 2 | H92: 2
A93: =IF(LEFT($C93,SEARCH(" ",$C93&" "))=LEFT($C92,SEARCH(" ",$C92&" ")),N(A92),N(A92)+1) -> 15 | B93: B43 | C93: BATILAC A HUILE MARRON CLAIRE EN 2.5KG | D93: 5 | E93: 3500 | F93: 0 | I93: 5
A94: 15 | B94: B56 | C94: BATILAC A HUILE NOIR EN 2.5KG | D94: 1 | E94: 3500 | F94: 0 | I94: 1
A95: 15 | B95: B608 | C95: BATILAC A HUILE JAUNE CUBA EN 2.5KG | D95: 8 | E95: 3000 | F95: 16 | H95: 8
A96: 15 | B96: B620 | C96: BATILAC A HUILE ROUGE DE 2,5 KG | D96: 0 | E96: 3000 | F96: 2 | H96: 2
A97: 15 | B97: B649 | C97: BATILAC A HUILE VERT JARDIN EN 2.5KG | D97: 1 | E97: 3500 | F97: 5 | G97: 1 | H97: 4
A98: 15 | B98: B662 | C98: BATILAC A HUILE BLANC DE 2,5 KG | D98: 0 | E98: 3500 | F98: 1 | H98: 1
A99: 15 | B99: B944 | C99: BATILAC A HUILE GRIS FONCE DE 1KG | D99: 1 | E99: 1000 | F99: 0 | I99: 1
A100: 15 | B100: B947 | C100: BATILAC A HUILE VERT FONCE DE 1KG | D100: 2 | E100: 1000 | F100: 0 | I100: 2
A101: 15 | B101: B952 | C101: BATILAC A HUILE JAUNE OXYDE DE 1KG | D101: 0 | E101: 1000 | F101: 1 | H101: 1
A102: 15 | B102: B954 | C102: BATILAC A HUILE VERT POIVRON DE 2,5KG | D102: 3 | E102: 3000 | F102: 0 | I102: 3
A103: 15 | B103: B957 | C103: BATILAC HUILE MARRON FONCE EN 2.5KGS | D103: 58 | E103: 3000 | F103: 0 | I103: 58
A104: Total 15 | H104: =SUBTOTAL(9,H92:H103) -> 18 | I104: =SUBTOTAL(9,I92:I103) -> 70
A107: =IF(LEFT($C107,SEARCH(" ",$C107&" "))=LEFT($C103,SEARCH(" ",$C103&" ")),N(A103),N(A103)+1) -> 16 | B107: B585 | C107: BATITEINTE BLEU IMP EN 180 G | D107: 14 | E107: 800 | F107: 13 | I107: 1
A108: =IF(LEFT($C108,SEARCH(" ",$C108&" "))=LEFT($C107,SEARCH(" ",$C107&" ")),N(A107),N(A107)+1) -> 16 | B108: B96 | C108: BATITEINTE MARRON IMP. 180G | D108: 361 | E108: 800 | F108: 426 | H108: 65
A109: =IF(LEFT($C109,SEARCH(" ",$C109&" "))=LEFT($C108,SEARCH(" ",$C108&" ")),N(A108),N(A108)+1) -> 16 | B109: B633 | C109: BATITEINTE NOIR IMP EN 180 G | D109: 71 | E109: 800 | F109: 69 | I109: 2
A110: =IF(LEFT($C110,SEARCH(" ",$C110&" "))=LEFT($C109,SEARCH(" ",$C109&" ")),N(A109),N(A109)+1) -> 16 | B110: B631 | C110: BATITEINTE ROUGE IMP EN 180 G | D110: 53 | E110: 800 | F110: 47 | I110: 6
A111: Total 16 | H111: =SUBTOTAL(9,H107:H110) -> 65 | I111: =SUBTOTAL(9,I107:I110) -> 9
A114: =IF(LEFT($C114,SEARCH(" ",$C114&" "))=LEFT($C110,SEARCH(" ",$C110&" ")),N(A110),N(A110)+1) -> 17 | B114: B645 | C114: BATTERIE ONDULEUR 12V/12AP | D114: 2 | E114: 15350 | G114: 2 | I114: 2 | J114: BPS
A115: =IF(LEFT($C115,SEARCH(" ",$C115&" "))=LEFT($C114,SEARCH(" ",$C114&" ")),N(A114),N(A114)+1) -> 17 | B115: B659 | C115: BATTERIE ONDULEUR 7H 12 AP | D115: 3 | E115: 12000 | G115: 3 | I115: 3 | J115: BPS
A116: Total 17 | H116: =SUBTOTAL(9,H114:H115) -> 0 | I116: =SUBTOTAL(9,I114:I115) -> 5
A119: =IF(LEFT($C119,SEARCH(" ",$C119&" "))=LEFT($C115,SEARCH(" ",$C115&" ")),N(A115),N(A115)+1) -> 18 | B119: B1078 | C119: BIC BLEU BEIFA EN PQT DE 50 PIECES | D119: 1 | E119: 2200 | G119: 1 | I119: 1 | J119: BPS
A120: =IF(LEFT($C120,SEARCH(" ",$C120&" "))=LEFT($C119,SEARCH(" ",$C119&" ")),N(A119),N(A119)+1) -> 18 | B120: B732 | C120: BIC BLEU CH | D120: 144 | E120: 75 | G120: 144 | I120: 144 | J120: BPS
A121: 18 | B121: B877 | C121: BIC BLEU EN PAQUET DE 50 | D121: 200 | E121: 1000 | G121: 200 | I121: 200 | J121: BPS
A122: 18 | B122: B879 | C122: BIC NOIR EN PAQUET DE 50 | D122: 198 | E122: 1000 | G122: 198 | I122: 198 | J122: BPS
A123: 18 | B123: B734 | C123: BIC ROUGE CH | D123: 100 | E123: 75 | G123: 100 | I123: 100 | J123: BPS
A124: 18 | B124: B878 | C124: BIC ROUGE EN PIECES | D124: 6350 | E124: 100 | G124: 6350 | I124: 6350 | J124: BPS
A125: Total 18 | H125: =SUBTOTAL(9,H119:H124) -> 0 | I125: =SUBTOTAL(9,I119:I124) -> 6993
A128: =IF(LEFT($C128,SEARCH(" ",$C128&" "))=LEFT($C124,SEARCH(" ",$C124&" ")),N(A124),N(A124)+1) -> 19 | B128: B6111 | C128: BLOC CUBIQUE | D128: 10 | E128: 500 | I128: 10 | J128: BPS
A129: 19 | B129: B5766 | C129: BLOC NOTE GM | D129: 5 | E129: 620 | I129: 5 | J129: BPS
A130: 19 | B130: B573 | C130: BLOC NOTE PM | D130: 10 | E130: 325 | I130: 10 | J130: BPS
A131: Total 19 | H131: =SUBTOTAL(9,H128:H130) -> 0 | I131: =SUBTOTAL(9,I128:I130) -> 25
A134: =IF(LEFT($C134,SEARCH(" ",$C134&" "))=LEFT($C130,SEARCH(" ",$C130&" ")),N(A130),N(A130)+1) -> 20 | B134: B132 | C134: BOITE DE DERIVATION 150 X 150 | D134: 70 | E134: 1900 | F134: 67 | I134: 3
A135: 20 | B135: B140 | C135: BOITE DE DERIVATION ENC 2316 | D135: 52 | E135: 1100 | F135: 1 | I135: 51
A136: 20 | B136: B1004 | C136: BOITE DE DERIVATION ETANCHE IP44 80X80X40 | D136: 49 | E136: 400 | F136: 50 | H136: 1
A137: 20 | B137: B138 | C137: BOITE DE DERIVATION REF 2310 | D137: 359 | E137: 450 | F137: 370 | G137: 1 | H137: 11
A138: 20 | B138: B139 | C138: BOITE DE DERIVATION REF 2313 | D138: 0 | E138: 725 | F138: 45 | H138: 45
A139: 20 | B139: B545 | C139: BOITE ETANCHE RONDE 80X50 | D139: 59 | E139: 575 | F139: 63 | H139: 4
A140: Total 20 | H140: =SUBTOTAL(9,H134:H139) -> 61 | I140: =SUBTOTAL(9,I134:I139) -> 54
A143: =IF(LEFT($C143,SEARCH(" ",$C143&" "))=LEFT($C139,SEARCH(" ",$C139&" ")),N(A139),N(A139)+1) -> 21 | B143: B1048 | C143: BOITIER KRISBOW REF E08SE8011C | D143: 14 | E143: 250 | F143: 0 | I143: 14
A144: 21 | B144: B612 | C144: BOITIER VENTOUSE LOURD | D144: 3417 | E144: 60 | F144: 3390 | G144: 2 | I144: 27
A145: Total 21 | H145: =SUBTOTAL(9,H143:H144) -> 0 | I145: =SUBTOTAL(9,I143:I144) -> 41
A148: =IF(LEFT($C148,SEARCH(" ",$C148&" "))=LEFT($C144,SEARCH(" ",$C144&" ")),N(A144),N(A144)+1) -> 22 | B148: B6155 | C148: BON DE COMMANDE SQC 99501- 100500 | D148: 7 | E148: 1100 | I148: 7 | J148: BPS
A149: 22 | B149: B1046 | C149: BON DE MANUTENTION CAISSE DEPENSE | D149: 10 | E149: 240 | I149: 10 | J149: BPS
A150: 22 | B150: B5477 | C150: BON DE RECEPTION COMMANDE CLIENT | D150: 1 | E150: 550 | I150: 1 | J150: BPS
A151: 22 | B151: B29 | C151: BON D'ENTREE SQC | D151: 25 | E151: 550 | I151: 25 | J151: BPS
A152: Total 22 | H152: =SUBTOTAL(9,H148:H151) -> 0 | I152: =SUBTOTAL(9,I148:I151) -> 43
A155: =IF(LEFT($C155,SEARCH(" ",$C155&" "))=LEFT($C151,SEARCH(" ",$C151&" ")),N(A151),N(A151)+1) -> 23 | B155: B628 | C155: BONDE EVIER SIMPLE 2BACS | D155: 30 | E155: 2150 | F155: 0 | I155: 30
A156: 23 | B156: B152 | C156: BONDE LAVABO + CHAINE INOX LY468 | D156: 52 | E156: 1700 | F156: 37 | G156: 21 | I156: 15
A157: 23 | B157: B154 | C157: BONDE POUR RECEVEUR DE DOUCHE | D157: 12 | E157: 2020 | F157: 0 | I157: 12
A158: Total 23 | H158: =SUBTOTAL(9,H155:H157) -> 0 | I158: =SUBTOTAL(9,I155:I157) -> 57
A161: =IF(LEFT($C161,SEARCH(" ",$C161&" "))=LEFT($C157,SEARCH(" ",$C157&" ")),N(A157),N(A157)+1) -> 24 | B161: B806 | C161: BOTTE DE SECU EN PVC P41 | D161: 10 | E161: 10350 | F161: 2 | I161: 8
A162: 24 | B162: B807 | C162: BOTTE DE SECU EN PVC P42 | D162: 1 | E162: 10350 | F162: 0 | I162: 1
A163: 24 | B163: B808 | C163: BOTTE DE SECU EN PVC P43 | D163: 2 | E163: 10350 | F163: 0 | I163: 2
A164: 24 | B164: B809 | C164: BOTTE DE SECU EN PVC P44 | D164: 1 | E164: 10350 | F164: 0 | I164: 1
A165: 24 | B165: B818 | C165: BOTTE DE SECU EN PVC P46 | D165: 1 | E165: 10350 | F165: 0 | I165: 1
A166: 24 | B166: B574 | C166: BOTTE DE SECURITE BELLOTA DE 40 | D166: 19 | E166: 9000 | F166: 18 | G166: 1 | I166: 1
A167: 24 | B167: B577 | C167: BOTTE DE SECURITE BELLOTA DE 41 | D167: 25 | E167: 9000 | F167: 36 | G167: 3 | H167: 11
A168: 24 | B168: B120 | C168: BOTTE DE SECURITE BELLOTA DE 43 | D168: 4 | E168: 9000 | F168: 5 | G168: 1 | H168: 1
A169: 24 | B169: B737 | C169: BOTTE DE SECURITE ITALY S5 DE 41 | D169: 24 | E169: 11500 | F169: 12 | I169: 12
A170: 24 | B170: B738 | C170: BOTTE DE SECURITE ITALY S5 DE 43 | D170: 24 | E170: 11500 | F170: 25 | H170: 1
A171: 24 | B171: B739 | C171: BOTTE DE SECURITE ITALY S5 DE 44 | D171: 35 | E171: 11500 | F171: 23 | I171: 12
A172: 24 | B172: B160 | C172: BOTTE DE SECURITE ITALY S5 DE 45 | D172: 33 | E172: 11500 | F172: 30 | I172: 3
A173: 24 | B173: B638 | C173: BOTTE PVC ITALY 41 | D173: 78 | E173: 4500 | F173: 15 | I173: 63
A174: 24 | B174: B824 | C174: BOTTE PVC ITALY 44 | D174: 277 | E174: 4500 | F174: 347 | H174: 70
A175: 24 | B175: B823 | C175: BOTTE PVC ITALY 43 | D175: 244 | E175: 4500 | F175: 228 | I175: 16
A176: 24 | B176: B729 | C176: BOTTE PVC ITALY 45 | D176: 125 | E176: 4500 | F176: 136 | H176: 11
A177: 24 | B177: B811 | C177: BOTTE PVC ITALY 40 | D177: 3 | E177: 4500 | F177: 5 | H177: 2
A178: 24 | B178: B822 | C178: BOTTE PVC ITALY 42 | D178: 267 | E178: 4500 | F178: 283 | H178: =IF(F178>D178,F178-D178,"") -> 16 | I178: =IF(F178<D178,D178-F178,"") -> 
A179: Total 24 | H179: =SUBTOTAL(9,H161:H178) -> 112 | I179: =SUBTOTAL(9,I161:I178) -> 120
A182: =IF(LEFT($C182,SEARCH(" ",$C182&" "))=LEFT($C178,SEARCH(" ",$C178&" ")),N(A178),N(A178)+1) -> 25 | B182: B169 | C182: BOUCHON GALVA FEMELLE 20/27 | D182: 242 | E182: 65 | F182: 154 | I182: 88
A183: 25 | B183: B170 | C183: BOUCHON GALVA FEMELLE 26/34 | D183: 1 | E183: 120 | F183: 5 | H183: 4
A184: 25 | B184: B579 | C184: BOUCHON GALVA FEMELLE 40/49 | D184: 13 | E184: 185 | F184: 14 | H184: 1
A185: 25 | B185: B171 | C185: BOUCHON GALVA MALE 15/21 | D185: 6 | E185: 45 | F185: 0 | I185: 6
A186: 25 | B186: B172 | C186: BOUCHON GALVA MALE 20/27 | D186: 399 | E186: 50 | F186: 441 | H186: 42
A187: 25 | B187: B173 | C187: BOUCHON GALVA MALE 26/34 | D187: 67 | E187: 80 | F187: 69 | H187: 2
A188: 25 | B188: B520 | C188: BOUCHON GALVA MALE 33/42 | D188: 17 | E188: 150 | F188: 18 | H188: 1
A189: 25 | B189: B1040 | C189: BOUCHON OREILLE VENITEX REF CONICAP 01 | D189: 161 | E189: 500 | F189: 174 | H189: 13
A190: 25 | B190: B174 | C190: BOUCHON PVC DE 32 | D190: 6 | E190: 200 | F190: 5 | I190: 1
A191: 25 | B191: B176 | C191: BOUCHON PVC DE 50 | D191: 179 | E191: 300 | F191: 178 | I191: 1
A192: 25 | B192: B177 | C192: BOUCHON PVC DE 63 | D192: 196 | E192: 500 | F192: 193 | I192: 3
A193: 25 | B193: B178 | C193: BOUCHON PVC DE 100 | D193: 453 | E193: 1100 | F193: 462 | H193: 9
A194: Total 25 | H194: =SUBTOTAL(9,H182:H193) -> 72 | I194: =SUBTOTAL(9,I182:I193) -> 99
A197: =IF(LEFT($C197,SEARCH(" ",$C197&" "))=LEFT($C193,SEARCH(" ",$C193&" ")),N(A193),N(A193)+1) -> 26 | B197: B677 | C197: BOUGIE EN PQUET DE 6PCES REF 075-45 CM | D197: 6 | E197: 650 | F197: 2 | I197: 4
A198: Total 26 | H198: =SUBTOTAL(9,H197:H197) -> 0 | I198: =SUBTOTAL(9,I197:I197) -> 4
A201: =IF(LEFT($C201,SEARCH(" ",$C201&" "))=LEFT($C197,SEARCH(" ",$C197&" ")),N(A197),N(A197)+1) -> 27 | B201: B582 | C201: BROSSE A CHAUX | D201: 272 | E201: 400 | F201: 256 | I201: 16
A202: 27 | B202: B413 | C202: BROSSE A CHAUX 3X12 M/PLASTIQUE | D202: 1 | E202: 350 | F202: 0 | I202: 1
A203: 27 | B203: B1057 | C203: BROSSE A CHAUX M/P 3X10 REF 6028C | D203: 487 | E203: 550 | F203: 490 | H203: 3
A204: 27 | B204: B1073 | C204: BROSSE A LINGE VIOLON CHIENENT M/B REF 722300 | D204: 196 | E204: 1700 | F204: 197 | H204: 1
A205: 27 | B205: B1072 | C205: BROSSE A LINGE VIOLON JAUNE M/P REF 722959 | D205: 331 | E205: 750 | F205: 330 | I205: 1
A206: 27 | B206: B654 | C206: BROSSE METALIQUE 3RANGEES | D206: 0 | E206: 250 | F206: 1 | G206: 1 | H206: 1
A207: 27 | B207: B548 | C207: BROSSE METALIQUE 4RANGEES | D207: 1415 | E207: 200 | F207: 1060 | I207: 355
A208: 27 | B208: B613 | C208: BROSSE METALIQUE 5RANGEES | D208: 1903 | E208: 295 | F208: 2641 | H208: 738
A209: 27 | B209: B417 | C209: BROSSE METALIQUE EN JEU DE 3 PIECES | D209: 113 | E209: 650 | F209: 8 | I209: 105
A210: =IF(LEFT($C210,SEARCH(" ",$C210&" "))=LEFT($C209,SEARCH(" ",$C209&" ")),N(A209),N(A209)+1) -> 27 | B210: B630 | C210: BROSSE METALIQUE JEUX 3 PIECES | D210: 237 | E210: 1000 | F210: 481 | H210: 244
A211: 27 | B211: B379 | C211: BROSSE METALIQUE RONDEDE 65MM | D211: 43 | E211: 450 | F211: 46 | H211: 3
A212: 27 | B212: B623 | C212: BROSSE METALLIQUE 6 RANGEES | D212: 484 | E212: 300 | F212: 112 | G212: 1 | I212: 372
A213: 27 | B213: B1052 | C213: BROSSE METALLIQUE JEUX 3PIECES REF 11118 | D213: 171 | E213: 900 | F213: 57 | I213: 114
A214: 27 | B214: B635 | C214: BROSSE METALLIQUE M/PLAST 4RANGEES | D214: 406 | E214: 450 | F214: 388 | I214: 18
A215: Total 27 | H215: =SUBTOTAL(9,H201:H214) -> 990 | I215: =SUBTOTAL(9,I201:I214) -> 982
A218: =IF(LEFT($C218,SEARCH(" ",$C218&" "))=LEFT($C214,SEARCH(" ",$C214&" ")),N(A214),N(A214)+1) -> 28 | B218: B433 | C218: BURIN PLAT PROTEGE DE 200 | D218: 171 | E218: 900 | F218: 335 | H218: 164
A219: 28 | B219: B434 | C219: BURIN PLAT PROTEGE DE 250 | D219: 110 | E219: 1050 | F219: 112 | H219: 2
A220: 28 | B220: B603 | C220: BURIN PLAT PROTEGE DE 350 | D220: 66 | E220: 900 | F220: 136 | H220: 70
A221: 28 | B221: B616 | C221: BURIN PLAT PROTEGE DE 400 | D221: 48 | E221: 1400 | F221: 49 | H221: 1
A222: 28 | B222: B443 | C222: BURIN POINTU PROTEGE DE 200 | D222: 175 | E222: 500 | F222: 49 | I222: 126
A223: 28 | B223: B444 | C223: BURIN POINTU PROTEGE DE 250G | D223: 192 | E223: 850 | F223: 67 | I223: 125
A224: 28 | B224: B446 | C224: BURIN POINTU PROTEGE DE 350 | D224: 109 | E224: 1100 | F224: 68 | I224: 41
A225: 28 | B225: B447 | C225: BURIN POINTU PROTEGE DE 400 | D225: 128 | E225: 1250 | F225: 179 | H225: 51
A226: Total 28 | H226: =SUBTOTAL(9,H218:H225) -> 288 | I226: =SUBTOTAL(9,I218:I225) -> 292
A229: =IF(LEFT($C229,SEARCH(" ",$C229&" "))=LEFT($C225,SEARCH(" ",$C225&" ")),N(A225),N(A225)+1) -> 29 | B229: C2514 | C229: CAHIER 17 X 22 200 PGES REF CS5 | D229: 24 | E229: 290 | F229: 0 | I229: 24
A230: 29 | B230: C2513 | C230: CAHIER 17 X 22 288 PGES CS6 | D230: 98 | E230: 500 | F230: 51 | I230: 47
A231: 29 | B231: C2672 | C231: CAHIER 17 X 22 32 PAGES REF CS1 | D231: 455 | E231: 80 | F231: 86 | I231: 369
A232: 29 | B232: C2674 | C232: CAHIER 17 X 22 384 PGES REF CS7 | D232: 907 | E232: 600 | F232: 862 | I232: 45
A233: 29 | B233: C2515 | C233: CAHIER 17 X 22 50 PGES REF CS2 | D233: 5265 | E233: 75 | F233: 5229 | I233: 36
A234: 29 | B234: C2685 | C234: CAHIER 17 X 22 EN 100 PAGES CS3 | D234: 57 | E234: 145 | F234: 53 | I234: 4
A235: 29 | B235: C2673 | C235: CAHIER 17X22 144PGES CS2 | D235: 0 | E235: 225 | F235: 10 | H235: 10
A236: 29 | B236: C4108 | C236: CAHIER 17X22 120PGES CS3 | D236: 4961 | E236: 200 | F236: 4705 | I236: 256
A237: 29 | B237: C4100 | C237: CAHIER 17X22 EN 300PGES SC6 | D237: 2567 | E237: 500 | F237: 3110 | H237: 543
A238: 29 | B238: C2517 | C238: CAHIER 210X297 100 PAGES | D238: 180 | E238: 400 | F238: 252 | H238: 72
A239: 29 | B239: C2676 | C239: CAHIER GF GQ 21 X 29.7 200 PGES REF GFG2 | D239: 1279 | E239: 600 | F239: 1487 | H239: 208
A240: 29 | B240: C4095 | C240: CAHIER GF GQ 21X29.7 EN 300 PAGES TP | D240: 4172 | E240: 1050 | F240: 4167 | I240: 5
A241: 29 | B241: C2680 | C241: CAHIER SIMPLE ANGLO 17 X 22 20 LEAVES | D241: 1370 | E241: 70 | F241: 569 | I241: 801
A242: 29 | B242: C2681 | C242: CAHIER SIMPLE ANGLO 17 X 22 40 LEAVES | D242: 0 | E242: 135 | F242: 46 | H242: 46
A243: 29 | B243: C2683 | C243: CAHIER SIMPLE ANGLO 17 X 22 80 LEAVES | D243: 105 | E243: 200 | F243: 2 | I243: 103
A244: 29 | B244: C4102 | C244: CAHIER SIMPLE ANGLO (PLANE LINE) 17X22 20 LEAVES | D244: 360 | E244: 70 | F244: 344 | I244: 16
A245: 29 | B245: C4103 | C245: CAHIER SIMPLE ANGLO (PLANE LINE) 17X22 40 LEAVES | D245: 0 | E245: 135 | F245: 348 | H245: 348
A246: 29 | B246: C4104 | C246: CAHIER SIMPLE ANGLO (PLANE LINE) 17X22 60 LEAVES | D246: 0 | E246: 275 | F246: 2 | H246: 2
A247: 29 | B247: C4105 | C247: CAHIER SIMPLE ANGLO (HARD COVER) 21X29.7 200 LEAVES | D247: 2008 | E247: 1000 | F247: 1787 | I247: 221
A248: 29 | B248: C4106 | C248: CAHIER SIMPLE ANGLO (HARD COVER) 17X29.7 300LEAVES | D248: 705 | E248: 1600 | F248: 712 | H248: 7
A249: 29 | B249: C4107 | C249: CAHIER SIMPLE ANGLO (HARD COVER) 17X29.7 400LEAVES | D249: 0 | E249: 1900 | F249: 5 | H249: 5
A250: 29 | B250: C2518 | C250: CAHIER TP 21 X 29.7 144 PGES REF TP1 | D250: 710 | E250: 500 | F250: 702 | I250: 8
A251: 29 | B251: C2675 | C251: CAHIER TP 21 X 29.7 200 PGES REF TP2 | D251: 220 | E251: 615 | F251: 234 | H251: 14
A252: Total 29 | H252: =SUBTOTAL(9,H229:H251) -> 1255 | I252: =SUBTOTAL(9,I229:I251) -> 1935
A255: =IF(LEFT($C255,SEARCH(" ",$C255&" "))=LEFT($C251,SEARCH(" ",$C251&" ")),N(A251),N(A251)+1) -> 30 | B255: C2532 | C255: CALOT REGLABLE PAPIER 53 BLC (bte 100PCES) REF 45660 | D255: 99 | E255: 5100 | F255: 0 | I255: 99
A256: Total 30 | H256: =SUBTOTAL(9,H255:H255) -> 0 | I256: =SUBTOTAL(9,I255:I255) -> 99
A259: =IF(LEFT($C259,SEARCH(" ",$C259&" "))=LEFT($C255,SEARCH(" ",$C255&" ")),N(A255),N(A255)+1) -> 31 | B259: C138 | C259: CAPTEUR REF 5273 | D259: 6 | E259: 7875 | F259: 1 | H259: =IF(F259>D259,F259-D259,"") ->  | I259: =IF(F259<D259,D259-F259,"") -> 5
A260: Total 31 | H260: =SUBTOTAL(9,H259:H259) -> 0 | I260: =SUBTOTAL(9,I259:I259) -> 5
A263: =IF(LEFT($C263,SEARCH(" ",$C263&" "))=LEFT($C259,SEARCH(" ",$C259&" ")),N(A259),N(A259)+1) -> 32 | B263: C1020/2 | C263: CAREEAU 10X20 RUSTIQUE REF AH2018 1C=0.6M² | D263: 0 | E263: 4000 | F263: 10.2 | H263: =IF(F263>D263,F263-D263,"") -> 10.2 | I263: =IF(F263<D263,D263-F263,"") -> 
... 1193 more rows

Sheet Feuil3
A1: FAMILLE | B1: CODES | C1: DESIGNATIONS | D1: S. O | E1: P. U | F1: Stock physique | H1: Stock Total | K1: Entrée | L1: Sortie | M1: Surplus | N1: Manquant | O1: OBSER
F2: Sain | G2: Avaries | I2: + | J2: -
A3: =IF(LEFT($C3,SEARCH(" ",$C3&" "))=LEFT($C2,SEARCH(" ",$C2&" ")),N(A2),N(A2)+1) -> 1 | B3: A488 | C3: ABATTANT WC BLANC LOURD | D3: 167 | E3: 4500 | F3: 146 | H3: =F3+G3 -> 146 | I3: =IF(H3>D3,H3-D3,"") ->  | J3: =IF(H3<D3,D3-H3,"") -> 21
A4: =IF(LEFT($C4,SEARCH(" ",$C4&" "))=LEFT($C3,SEARCH(" ",$C3&" ")),N(A3),N(A3)+1) -> 1 | B4: A5 | C4: ABATTANT WC BLEU | D4: 5 | E4: 2500 | F4: 19 | G4: 7 | H4: =F4+G4 -> 26 | I4: =IF(H4>D4,H4-D4,"") -> 21 | J4: =IF(H4<D4,D4-H4,"") -> 
A5: 1 | B5: A462 | C5: ABATTANT WC LOURD ROSE | D5: 13 | E5: 2825 | F5: 0 | H5: 0 | J5: 13
A6: Total 1 | I6: =SUBTOTAL(9,I3:I5) -> 21 | J6: =SUBTOTAL(9,J3:J5) -> 34 | K6: =SUBTOTAL(9,K3:K5) -> 0 | L6: =SUBTOTAL(9,L3:L5) -> 0
A7: =IF(LEFT($C7,SEARCH(" ",$C7&" "))=LEFT($C5,SEARCH(" ",$C5&" ")),N(A5),N(A5)+1) -> 2 | B7: A10 | C7: ACIDE CHLORIDRIQUE 1L | D7: 6 | E7: 500 | F7: 10 | G7: 10 | H7: 20 | I7: 14
A8: Total 2 | I8: =SUBTOTAL(9,I7:I7) -> 14 | J8: =SUBTOTAL(9,J7:J7) -> 0 | K8: =SUBTOTAL(9,K7:K7) -> 0 | L8: =SUBTOTAL(9,L7:L7) -> 0
A9: =IF(LEFT($C9,SEARCH(" ",$C9&" "))=LEFT($C7,SEARCH(" ",$C7&" ")),N(A7),N(A7)+1) -> 3 | B9: A456 | C9: AGRAFE 8/4 | D9: 20 | E9: 170 | H9: 0 | J9: 20 | O9: BPS
A10: Total 3 | I10: =SUBTOTAL(9,I9:I9) -> 0 | J10: =SUBTOTAL(9,J9:J9) -> 20 | K10: =SUBTOTAL(9,K9:K9) -> 0 | L10: =SUBTOTAL(9,L9:L9) -> 0
A11: =IF(LEFT($C11,SEARCH(" ",$C11&" "))=LEFT($C9,SEARCH(" ",$C9&" ")),N(A9),N(A9)+1) -> 4 | B11: A321 | C11: AMPOULE E14 POINTU 40W EMKAY | D11: 0 | E11: 60 | F11: 101 | G11: 101 | H11: 202 | I11: 202
A12: 4 | B12: A271 | C12: AMPOULE PHILIPS B22 60W | D12: 0 | E12: 200 | F12: 20 | G12: 14 | H12: 34 | I12: 34
A13: 4 | B13: A51 | C13: AMPOULE B22 TESLA BLANC 40W | D13: 458 | E13: 100 | F13: 332 | G13: 132 | H13: 464 | I13: 6
A14: 4 | B14: A546 | C14: AMPOULE ECO LED B22 REF E02B02 BLANC 7W | D14: 120 | E14: 3000 | F14: 126 | H14: 126 | I14: 6
A15: 4 | B15: A458 | C15: AMPOULE ECO PHILIP E27 | D15: 44 | E15: 1200 | F15: 35 | G15: 11 | H15: 46 | I15: 2
A16: 4 | B16: A543 | C16: AMPOULE ECO PHILIPS E27 11W 3U PM | D16: 1 | E16: 1500 | F16: 0 | H16: 0 | J16: 1
A17: 4 | B17: A459 | C17: AMPOULE ECO PHILIPS E27 14W | D17: 36 | E17: 1500 | F17: 0 | H17: 0 | J17: 36
A18: 4 | B18: A566 | C18: AMPOULE ECO VIRONY B22 ES-003 DE 105W | D18: 0 | E18: 3000 | F18: 7 | G18: 7 | H18: 14 | I18: 14
A19: 4 | B19: A216 | C19: AMPOULE ECONOMIQUE E27 2U 18W ESL (CJB) | D19: 36 | E19: 500 | F19: 20 | G19: 8 | H19: 28 | J19: 8
A20: 4 | B20: A453 | C20: AMPOULE MAF DIRECT 450W | D20: 8 | E20: 2070 | F20: 6 | H20: 6 | J20: 2
A21: 4 | B21: A192 | C21: AMPOULE MAF E27 DIRECT 250W | D21: 45 | E21: 1350 | F21: 66 | G21: 56 | H21: 122 | I21: 77
A22: 4 | B22: A309 | C22: AMPOULE MAF E40 INDIRECT 250W | D22: 1 | E22: 1220 | F22: 42 | G22: 2 | H22: 44 | I22: 43
A23: 4 | B23: A282 | C23: AMPOULE SPOT E27 60W R80 TOUTES COULEURS | D23: 425 | E23: 400 | F23: 560 | G23: 1 | H23: 561 | I23: 136
A24: 4 | B24: A280 | C24: AMPOULE SPOT E27 40W R80 | D24: 206 | E24: 350 | F24: 175 | G24: 1 | H24: 176 | J24: 30
A25: 4 | B25: A91 | C25: AMPOULE SPOT E27 BLANC 75W R60 | D25: 391 | E25: 400 | F25: 300 | H25: 300 | J25: 91
A26: Total 4 | I26: =SUBTOTAL(9,I11:I25) -> 520 | J26: =SUBTOTAL(9,J11:J25) -> 168 | K26: =SUBTOTAL(9,K11:K25) -> 0 | L26: =SUBTOTAL(9,L11:L25) -> 0
A27: =IF(LEFT($C27,SEARCH(" ",$C27&" "))=LEFT($C25,SEARCH(" ",$C25&" ")),N(A25),N(A25)+1) -> 5 | B27: A415 | C27: ANTICHOC ALU DE 60 CM DROIT | D27: 92 | E27: 2200 | F27: 123 | H27: 123 | I27: 31
A28: Total 5 | I28: =SUBTOTAL(9,I27:I27) -> 31 | J28: =SUBTOTAL(9,J27:J27) -> 0 | K28: =SUBTOTAL(9,K27:K27) -> 0 | L28: =SUBTOTAL(9,L27:L27) -> 0
A29: =IF(LEFT($C29,SEARCH(" ",$C29&" "))=LEFT($C27,SEARCH(" ",$C27&" ")),N(A27),N(A27)+1) -> 6 | B29: A111 | C29: ANTI-CHOC ALU DE 60 CM | D29: 125 | E29: 2000 | F29: 104 | H29: 104 | J29: 21
A30: 6 | B30: A585 | C30: ANTI-CHOC ALU DROIT 80CM | D30: 59 | E30: 3500 | F30: 56 | H30: 56 | J30: 3
A31: Total 6 | I31: =SUBTOTAL(9,I29:I30) -> 0 | J31: =SUBTOTAL(9,J29:J30) -> 24 | K31: =SUBTOTAL(9,K29:K30) -> 0 | L31: =SUBTOTAL(9,L29:L30) -> 0
A32: =IF(LEFT($C32,SEARCH(" ",$C32&" "))=LEFT($C30,SEARCH(" ",$C30&" ")),N(A30),N(A30)+1) -> 7 | B32: A394 | C32: ANTI-ROUILLE BR 1.2KG CAMERO PEINT | D32: 237 | E32: 1750 | F32: 238 | H32: 238 | I32: 1
A33: 7 | B33: A259 | C33: ANTI-ROUILLE BRUN 1KG MPCC | D33: 110 | E33: 1950 | F33: 111 | G33: 1 | H33: 112 | I33: 2
A34: 7 | B34: A286 | C34: ANTI-ROUILLE BRUN EN 5KG MPCC | D34: 16 | E34: 9900 | F34: 25 | H34: 25 | I34: 9
A35: 7 | B35: A204 | C35: ANTI-ROUILLE ORANGE 2KG MPCC | D35: 1 | E35: 4300 | F35: 0 | H35: 0 | J35: 1
A36: 7 | B36: A275 | C36: ANTI-ROUILLE ORANGE DE 5 KG MPCC | D36: 9 | E36: 10800 | F36: 0 | H36: 0 | J36: 9
A37: Total 7 | I37: =SUBTOTAL(9,I32:I36) -> 12 | J37: =SUBTOTAL(9,J32:J36) -> 10 | K37: =SUBTOTAL(9,K32:K36) -> 0 | L37: =SUBTOTAL(9,L32:L36) -> 0
A38: =IF(LEFT($C38,SEARCH(" ",$C38&" "))=LEFT($C36,SEARCH(" ",$C36&" ")),N(A36),N(A36)+1) -> 8 | B38: A370 | C38: ARRACHE CLOU DE 40 | D38: 37 | E38: 900 | F38: 32 | H38: 32 | J38: 5
A39: 8 | B39: A125 | C39: ARRACHE CLOU DE 50 | D39: 6 | E39: 1500 | F39: 9 | H39: 9 | I39: 3
A40: 8 | B40: A126 | C40: ARRACHE CLOU DE 60 | D40: 34 | E40: 1300 | F40: 36 | H40: 36 | I40: 2
A41: 8 | B41: A127 | C41: ARRACHE CLOU DE 70 | D41: 74 | E41: 2200 | F41: 6 | H41: 6 | J41: 68
A42: 8 | B42: A128 | C42: ARRACHE CLOU DE 80 | D42: 36 | E42: 2000 | F42: 60 | H42: 60 | I42: 24
A43: Total 8 | I43: =SUBTOTAL(9,I38:I42) -> 29 | J43: =SUBTOTAL(9,J38:J42) -> 73 | K43: =SUBTOTAL(9,K38:K42) -> 0 | L43: =SUBTOTAL(9,L38:L42) -> 0
A44: =IF(LEFT($C44,SEARCH(" ",$C44&" "))=LEFT($C42,SEARCH(" ",$C42&" ")),N(A42),N(A42)+1) -> 9 | B44: A177 | C44: ATTACHE ELECT DE 14/100P | D44: 68 | E44: 500 | F44: 49 | H44: 49 | J44: 19
A45: 9 | B45: A170 | C45: ATTACHE ELECT DE 5/100P | D45: 4 | E45: 700 | F45: 0 | H45: 0 | J45: 4
A46: 9 | B46: A172 | C46: ATTACHE ELECT DE 7/100PCES | D46: 82 | E46: 125 | F46: 70 | H46: 70 | J46: 12
A47: 9 | B47: A174 | C47: ATTACHE ELECT DE 9/100PCES | D47: 0 | E47: 150 | F47: 3 | H47: 3 | I47: 3
A48: Total 9 | I48: =SUBTOTAL(9,I44:I47) -> 3 | J48: =SUBTOTAL(9,J44:J47) -> 35 | K48: =SUBTOTAL(9,K44:K47) -> 0 | L48: =SUBTOTAL(9,L44:L47) -> 0
A49: =IF(LEFT($C49,SEARCH(" ",$C49&" "))=LEFT($C47,SEARCH(" ",$C47&" ")),N(A47),N(A47)+1) -> 10 | B49: A301 | C49: AUGE MACON PROGON DE 35 L REF 7735 | D49: 1 | E49: 6000 | F49: 0 | H49: 0 | J49: 1
A50: Total 10 | I50: =SUBTOTAL(9,I49:I49) -> 0 | J50: =SUBTOTAL(9,J49:J49) -> 1 | K50: =SUBTOTAL(9,K49:K49) -> 0 | L50: =SUBTOTAL(9,L49:L49) -> 0
A51: =IF(LEFT($C51,SEARCH(" ",$C51&" "))=LEFT($C49,SEARCH(" ",$C49&" ")),N(A49),N(A49)+1) -> 11 | B51: B33 | C51: BALAI CANTONNIER NYLON ROUGE | D51: 243 | E51: 2500 | F51: 99 | H51: 99 | J51: 144
A52: Total 11 | I52: =SUBTOTAL(9,I51:I51) -> 0 | J52: =SUBTOTAL(9,J51:J51) -> 144 | K52: =SUBTOTAL(9,K51:K51) -> 0 | L52: =SUBTOTAL(9,L51:L51) -> 0
A53: =IF(LEFT($C53,SEARCH(" ",$C53&" "))=LEFT($C51,SEARCH(" ",$C51&" ")),N(A51),N(A51)+1) -> 12 | B53: B61 | C53: BANDE ADHESIVE DE 25 CM | D53: 307 | E53: 200 | F53: 7 | H53: 7 | J53: 300
A54: 12 | B54: B646 | C54: BANDE THERMIQUE 57X40 | D54: 79 | E54: 300 | H54: 0 | J54: 79 | O54: BPS
A55: 12 | B55: B670 | C55: BANDE THERMIQUE 57X56 | D55: 13 | E55: 1500 | H55: 0 | J55: 13 | O55: BPS
A56: Total 12 | I56: =SUBTOTAL(9,I53:I55) -> 0 | J56: =SUBTOTAL(9,J53:J55) -> 392 | K56: =SUBTOTAL(9,K53:K55) -> 0 | L56: =SUBTOTAL(9,L53:L55) -> 0
A57: =IF(LEFT($C57,SEARCH(" ",$C57&" "))=LEFT($C55,SEARCH(" ",$C55&" ")),N(A55),N(A55)+1) -> 13 | B57: B1092 | C57: BARRE A MINE DE 1.750M FRANCAIS | D57: 5 | E57: 22100 | F57: 4 | H57: 4 | J57: 1
A58: 13 | B58: B75 | C58: BARRE A MINE DE 1.80 M | D58: 20 | E58: 10300 | F58: 3 | H58: 3 | J58: 17
A59: 13 | B59: B76 | C59: BARRE A MINE DE 2M | D59: 19 | E59: 11000 | F59: 38 | H59: 38 | I59: 19
A60: 13 | B60: B1093 | C60: BARRE AMINE DE 2M FRANCAIS | D60: 5 | E60: 28250 | F60: 4 | H60: 4 | J60: 1
A61: Total 13 | I61: =SUBTOTAL(9,I57:I60) -> 19 | J61: =SUBTOTAL(9,J57:J60) -> 19 | K61: =SUBTOTAL(9,K57:K60) -> 0 | L61: =SUBTOTAL(9,L57:L60) -> 0
A62: =IF(LEFT($C62,SEARCH(" ",$C62&" "))=LEFT($C60,SEARCH(" ",$C60&" ")),N(A60),N(A60)+1) -> 14 | B62: B611 | C62: BATICIT A EAU BLANC DE 25 KG IMP. | D62: 1 | E62: 10500 | F62: 0 | H62: 0 | J62: 1
A63: Total 14 | I63: =SUBTOTAL(9,I62:I62) -> 0 | J63: =SUBTOTAL(9,J62:J62) -> 1 | K63: =SUBTOTAL(9,K62:K62) -> 0 | L63: =SUBTOTAL(9,L62:L62) -> 0
A64: =IF(LEFT($C64,SEARCH(" ",$C64&" "))=LEFT($C62,SEARCH(" ",$C62&" ")),N(A62),N(A62)+1) -> 15 | B64: B192 | C64: BATILAC A HUILE GRIS FONCE DE 2,5 KG | D64: 0 | E64: 3000 | F64: 2 | H64: 2 | I64: 2
A65: 15 | B65: B43 | C65: BATILAC A HUILE MARRON CLAIRE EN 2.5KG | D65: 5 | E65: 3500 | F65: 0 | H65: 0 | J65: 5
A66: 15 | B66: B56 | C66: BATILAC A HUILE NOIR EN 2.5KG | D66: 1 | E66: 3500 | F66: 0 | H66: 0 | J66: 1
A67: 15 | B67: B608 | C67: BATILAC A HUILE JAUNE CUBA EN 2.5KG | D67: 8 | E67: 3000 | F67: 16 | H67: 16 | I67: 8
A68: 15 | B68: B620 | C68: BATILAC A HUILE ROUGE DE 2,5 KG | D68: 0 | E68: 3000 | F68: 2 | H68: 2 | I68: 2
A69: 15 | B69: B649 | C69: BATILAC A HUILE VERT JARDIN EN 2.5KG | D69: 1 | E69: 3500 | F69: 5 | G69: 1 | H69: 6 | I69: 5
A70: 15 | B70: B662 | C70: BATILAC A HUILE BLANC DE 2,5 KG | D70: 0 | E70: 3500 | F70: 1 | H70: 1 | I70: 1
A71: 15 | B71: B944 | C71: BATILAC A HUILE GRIS FONCE DE 1KG | D71: 1 | E71: 1000 | F71: 0 | H71: 0 | J71: 1
A72: 15 | B72: B947 | C72: BATILAC A HUILE VERT FONCE DE 1KG | D72: 2 | E72: 1000 | F72: 0 | H72: 0 | J72: 2
A73: 15 | B73: B952 | C73: BATILAC A HUILE JAUNE OXYDE DE 1KG | D73: 0 | E73: 1000 | F73: 1 | H73: 1 | I73: 1
A74: 15 | B74: B954 | C74: BATILAC A HUILE VERT POIVRON DE 2,5KG | D74: 3 | E74: 3000 | F74: 0 | H74: 0 | J74: 3
A75: 15 | B75: B957 | C75: BATILAC HUILE MARRON FONCE EN 2.5KGS | D75: 58 | E75: 3000 | F75: 0 | H75: 0 | J75: 58
A76: Total 15 | I76: =SUBTOTAL(9,I64:I75) -> 19 | J76: =SUBTOTAL(9,J64:J75) -> 70 | K76: =SUBTOTAL(9,K64:K75) -> 0 | L76: =SUBTOTAL(9,L64:L75) -> 0
A77: =IF(LEFT($C77,SEARCH(" ",$C77&" "))=LEFT($C75,SEARCH(" ",$C75&" ")),N(A75),N(A75)+1) -> 16 | B77: B585 | C77: BATITEINTE BLEU IMP EN 180 G | D77: 14 | E77: 800 | F77: 13 | H77: 13 | J77: 1
A78: 16 | B78: B96 | C78: BATITEINTE MARRON IMP. 180G | D78: 361 | E78: 800 | F78: 426 | H78: 426 | I78: 65
A79: 16 | B79: B633 | C79: BATITEINTE NOIR IMP EN 180 G | D79: 71 | E79: 800 | F79: 69 | H79: 69 | J79: 2
A80: 16 | B80: B631 | C80: BATITEINTE ROUGE IMP EN 180 G | D80: 53 | E80: 800 | F80: 47 | H80: 47 | J80: 6
A81: Total 16 | I81: =SUBTOTAL(9,I77:I80) -> 65 | J81: =SUBTOTAL(9,J77:J80) -> 9 | K81: =SUBTOTAL(9,K77:K80) -> 0 | L81: =SUBTOTAL(9,L77:L80) -> 0
A82: =IF(LEFT($C82,SEARCH(" ",$C82&" "))=LEFT($C80,SEARCH(" ",$C80&" ")),N(A80),N(A80)+1) -> 17 | B82: B645 | C82: BATTERIE ONDULEUR 12V/12AP | D82: 2 | E82: 15350 | G82: 2 | H82: 2 | O82: BPS
A83: 17 | B83: B659 | C83: BATTERIE ONDULEUR 7H 12 AP | D83: 3 | E83: 12000 | G83: 3 | H83: 3 | O83: BPS
A84: Total 17 | I84: =SUBTOTAL(9,I82:I83) -> 0 | J84: =SUBTOTAL(9,J82:J83) -> 0 | K84: =SUBTOTAL(9,K82:K83) -> 0 | L84: =SUBTOTAL(9,L82:L83) -> 0
A85: =IF(LEFT($C85,SEARCH(" ",$C85&" "))=LEFT($C83,SEARCH(" ",$C83&" ")),N(A83),N(A83)+1) -> 18 | B85: B1078 | C85: BIC BLEU BEIFA EN PQT DE 50 PIECES | D85: 1 | E85: 2200 | G85: 1 | H85: =F85+G85 -> 1 | I85: =IF(H85>D85,H85-D85,"") ->  | J85: =IF(H85<D85,D85-H85,"") ->  | O85: BPS
A86: =IF(LEFT($C86,SEARCH(" ",$C86&" "))=LEFT($C85,SEARCH(" ",$C85&" ")),N(A85),N(A85)+1) -> 18 | B86: B732 | C86: BIC BLEU CH | D86: 144 | E86: 75 | G86: 144 | H86: 144 | O86: BPS
A87: 18 | B87: B877 | C87: BIC BLEU EN PAQUET DE 50 | D87: 200 | E87: 1000 | G87: 200 | H87: 200 | O87: BPS
A88: 18 | B88: B879 | C88: BIC NOIR EN PAQUET DE 50 | D88: 198 | E88: 1000 | G88: 198 | H88: 198 | O88: BPS
A89: 18 | B89: B734 | C89: BIC ROUGE CH | D89: 100 | E89: 75 | G89: 100 | H89: 100 | O89: BPS
A90: 18 | B90: B878 | C90: BIC ROUGE EN PIECES | D90: 6350 | E90: 100 | G90: 6350 | H90: 6350 | O90: BPS
A91: Total 18 | I91: =SUBTOTAL(9,I85:I90) -> 0 | J91: =SUBTOTAL(9,J85:J90) -> 0 | K91: =SUBTOTAL(9,K85:K90) -> 0 | L91: =SUBTOTAL(9,L85:L90) -> 0
A92: =IF(LEFT($C92,SEARCH(" ",$C92&" "))=LEFT($C90,SEARCH(" ",$C90&" ")),N(A90),N(A90)+1) -> 19 | B92: B6111 | C92: BLOC CUBIQUE | D92: 10 | E92: 500 | H92: 0 | J92: 10 | O92: BPS
A93: 19 | B93: B5766 | C93: BLOC NOTE GM | D93: 5 | E93: 620 | H93: 0 | J93: 5 | O93: BPS
A94: 19 | B94: B573 | C94: BLOC NOTE PM | D94: 10 | E94: 325 | H94: 0 | J94: 10 | O94: BPS
A95: Total 19 | I95: =SUBTOTAL(9,I92:I94) -> 0 | J95: =SUBTOTAL(9,J92:J94) -> 25 | K95: =SUBTOTAL(9,K92:K94) -> 0 | L95: =SUBTOTAL(9,L92:L94) -> 0
A96: =IF(LEFT($C96,SEARCH(" ",$C96&" "))=LEFT($C94,SEARCH(" ",$C94&" ")),N(A94),N(A94)+1) -> 20 | B96: B132 | C96: BOITE DE DERIVATION 150 X 150 | D96: 70 | E96: 1900 | F96: 67 | H96: 67 | J96: 3
A97: 20 | B97: B140 | C97: BOITE DE DERIVATION ENC 2316 | D97: 52 | E97: 1100 | F97: 1 | H97: 1 | J97: 51
A98: 20 | B98: B1004 | C98: BOITE DE DERIVATION ETANCHE IP44 80X80X40 | D98: 49 | E98: 400 | F98: 50 | H98: 50 | I98: 1
A99: 20 | B99: B138 | C99: BOITE DE DERIVATION REF 2310 | D99: 359 | E99: 450 | F99: 370 | G99: 1 | H99: 371 | I99: 12
A100: 20 | B100: B139 | C100: BOITE DE DERIVATION REF 2313 | D100: 0 | E100: 725 | F100: 45 | H100: 45 | I100: 45
A101: 20 | B101: B545 | C101: BOITE ETANCHE RONDE 80X50 | D101: 59 | E101: 575 | F101: 63 | H101: 63 | I101: 4
A102: Total 20 | I102: =SUBTOTAL(9,I96:I101) -> 62 | J102: =SUBTOTAL(9,J96:J101) -> 54 | K102: =SUBTOTAL(9,K96:K101) -> 0 | L102: =SUBTOTAL(9,L96:L101) -> 0
A103: =IF(LEFT($C103,SEARCH(" ",$C103&" "))=LEFT($C101,SEARCH(" ",$C101&" ")),N(A101),N(A101)+1) -> 21 | B103: B1048 | C103: BOITIER KRISBOW REF E08SE8011C | D103: 14 | E103: 250 | F103: 0 | H103: 0 | J103: 14
A104: 21 | B104: B612 | C104: BOITIER VENTOUSE LOURD | D104: 3417 | E104: 60 | F104: 3390 | G104: 2 | H104: 3392 | J104: 25
A105: Total 21 | I105: =SUBTOTAL(9,I103:I104) -> 0 | J105: =SUBTOTAL(9,J103:J104) -> 39 | K105: =SUBTOTAL(9,K103:K104) -> 0 | L105: =SUBTOTAL(9,L103:L104) -> 0
A106: =IF(LEFT($C106,SEARCH(" ",$C106&" "))=LEFT($C104,SEARCH(" ",$C104&" ")),N(A104),N(A104)+1) -> 22 | B106: B6155 | C106: BON DE COMMANDE SQC 99501- 100500 | D106: 7 | E106: 1100 | H106: 0 | J106: 7 | O106: BPS
A107: 22 | B107: B1046 | C107: BON DE MANUTENTION CAISSE DEPENSE | D107: 10 | E107: 240 | H107: 0 | J107: 10 | O107: BPS
A108: 22 | B108: B5477 | C108: BON DE RECEPTION COMMANDE CLIENT | D108: 1 | E108: 550 | H108: 0 | J108: 1 | O108: BPS
A109: 22 | B109: B29 | C109: BON D'ENTREE SQC | D109: 25 | E109: 550 | H109: 0 | J109: 25 | O109: BPS
A110: Total 22 | I110: =SUBTOTAL(9,I106:I109) -> 0 | J110: =SUBTOTAL(9,J106:J109) -> 43 | K110: =SUBTOTAL(9,K106:K109) -> 0 | L110: =SUBTOTAL(9,L106:L109) -> 0
A111: =IF(LEFT($C111,SEARCH(" ",$C111&" "))=LEFT($C109,SEARCH(" ",$C109&" ")),N(A109),N(A109)+1) -> 23 | B111: B628 | C111: BONDE EVIER SIMPLE 2BACS | D111: 30 | E111: 2150 | F111: 0 | H111: 0 | J111: 30
A112: 23 | B112: B152 | C112: BONDE LAVABO + CHAINE INOX LY468 | D112: 52 | E112: 1700 | F112: 37 | G112: 21 | H112: 58 | I112: 6
A113: 23 | B113: B154 | C113: BONDE POUR RECEVEUR DE DOUCHE | D113: 12 | E113: 2020 | F113: 0 | H113: 0 | J113: 12
A114: Total 23 | I114: =SUBTOTAL(9,I111:I113) -> 6 | J114: =SUBTOTAL(9,J111:J113) -> 42 | K114: =SUBTOTAL(9,K111:K113) -> 0 | L114: =SUBTOTAL(9,L111:L113) -> 0
A115: =IF(LEFT($C115,SEARCH(" ",$C115&" "))=LEFT($C113,SEARCH(" ",$C113&" ")),N(A113),N(A113)+1) -> 24 | B115: B806 | C115: BOTTE DE SECU EN PVC P41 | D115: 10 | E115: 10350 | F115: 2 | H115: 2 | J115: 8
A116: 24 | B116: B807 | C116: BOTTE DE SECU EN PVC P42 | D116: 1 | E116: 10350 | F116: 0 | H116: 0 | J116: 1
A117: 24 | B117: B808 | C117: BOTTE DE SECU EN PVC P43 | D117: 2 | E117: 10350 | F117: 0 | H117: 0 | J117: 2
A118: 24 | B118: B809 | C118: BOTTE DE SECU EN PVC P44 | D118: 1 | E118: 10350 | F118: 0 | H118: 0 | J118: 1
A119: 24 | B119: B818 | C119: BOTTE DE SECU EN PVC P46 | D119: 1 | E119: 10350 | F119: 0 | H119: 0 | J119: 1
A120: 24 | B120: B574 | C120: BOTTE DE SECURITE BELLOTA DE 40 | D120: 19 | E120: 9000 | F120: 18 | G120: 1 | H120: 19
A121: 24 | B121: B577 | C121: BOTTE DE SECURITE BELLOTA DE 41 | D121: 25 | E121: 9000 | F121: 36 | G121: 3 | H121: 39 | I121: 14
A122: 24 | B122: B120 | C122: BOTTE DE SECURITE BELLOTA DE 43 | D122: 4 | E122: 9000 | F122: 5 | G122: 1 | H122: 6 | I122: 2
A123: 24 | B123: B737 | C123: BOTTE DE SECURITE ITALY S5 DE 41 | D123: 24 | E123: 11500 | F123: 12 | H123: 12 | J123: 12
A124: 24 | B124: B738 | C124: BOTTE DE SECURITE ITALY S5 DE 43 | D124: 24 | E124: 11500 | F124: 25 | H124: 25 | I124: 1
A125: 24 | B125: B739 | C125: BOTTE DE SECURITE ITALY S5 DE 44 | D125: 35 | E125: 11500 | F125: 23 | H125: 23 | J125: 12
A126: 24 | B126: B160 | C126: BOTTE DE SECURITE ITALY S5 DE 45 | D126: 33 | E126: 11500 | F126: 30 | H126: 30 | J126: 3
A127: 24 | B127: B638 | C127: BOTTE PVC ITALY 41 | D127: 78 | E127: 4500 | F127: 15 | H127: 15 | J127: 63
A128: 24 | B128: B824 | C128: BOTTE PVC ITALY 44 | D128: 277 | E128: 4500 | F128: 347 | H128: 347 | I128: 70
A129: 24 | B129: B823 | C129: BOTTE PVC ITALY 43 | D129: 244 | E129: 4500 | F129: 228 | H129: 228 | J129: 16
A130: 24 | B130: B729 | C130: BOTTE PVC ITALY 45 | D130: 125 | E130: 4500 | F130: 136 | H130: 136 | I130: 11
A131: 24 | B131: B811 | C131: BOTTE PVC ITALY 40 | D131: 3 | E131: 4500 | F131: 5 | H131: 5 | I131: 2
A132: 24 | B132: B822 | C132: BOTTE PVC ITALY 42 | D132: 267 | E132: 4500 | F132: 283 | H132: 283 | I132: 16
A133: Total 24 | I133: =SUBTOTAL(9,I115:I132) -> 116 | J133: =SUBTOTAL(9,J115:J132) -> 119 | K133: =SUBTOTAL(9,K115:K132) -> 0 | L133: =SUBTOTAL(9,L115:L132) -> 0
A134: =IF(LEFT($C134,SEARCH(" ",$C134&" "))=LEFT($C132,SEARCH(" ",$C132&" ")),N(A132),N(A132)+1) -> 25 | B134: B169 | C134: BOUCHON GALVA FEMELLE 20/27 | D134: 242 | E134: 65 | F134: 154 | H134: 154 | J134: 88
A135: 25 | B135: B170 | C135: BOUCHON GALVA FEMELLE 26/34 | D135: 1 | E135: 120 | F135: 5 | H135: 5 | I135: 4
A136: 25 | B136: B579 | C136: BOUCHON GALVA FEMELLE 40/49 | D136: 13 | E136: 185 | F136: 14 | H136: 14 | I136: 1
A137: 25 | B137: B171 | C137: BOUCHON GALVA MALE 15/21 | D137: 6 | E137: 45 | F137: 0 | H137: 0 | J137: 6
A138: 25 | B138: B172 | C138: BOUCHON GALVA MALE 20/27 | D138: 399 | E138: 50 | F138: 441 | H138: 441 | I138: 42
A139: 25 | B139: B173 | C139: BOUCHON GALVA MALE 26/34 | D139: 67 | E139: 80 | F139: 69 | H139: 69 | I139: 2
A140: 25 | B140: B520 | C140: BOUCHON GALVA MALE 33/42 | D140: 17 | E140: 150 | F140: 18 | H140: 18 | I140: 1
A141: 25 | B141: B1040 | C141: BOUCHON OREILLE VENITEX REF CONICAP 01 | D141: 161 | E141: 500 | F141: 174 | H141: 174 | I141: 13
A142: 25 | B142: B174 | C142: BOUCHON PVC DE 32 | D142: 6 | E142: 200 | F142: 5 | H142: 5 | J142: 1
A143: 25 | B143: B176 | C143: BOUCHON PVC DE 50 | D143: 179 | E143: 300 | F143: 178 | H143: 178 | J143: 1
A144: 25 | B144: B177 | C144: BOUCHON PVC DE 63 | D144: 196 | E144: 500 | F144: 193 | H144: 193 | J144: 3
A145: 25 | B145: B178 | C145: BOUCHON PVC DE 100 | D145: 453 | E145: 1100 | F145: 462 | H145: 462 | I145: 9
A146: Total 25 | I146: =SUBTOTAL(9,I134:I145) -> 72 | J146: =SUBTOTAL(9,J134:J145) -> 99 | K146: =SUBTOTAL(9,K134:K145) -> 0 | L146: =SUBTOTAL(9,L134:L145) -> 0
A147: =IF(LEFT($C147,SEARCH(" ",$C147&" "))=LEFT($C145,SEARCH(" ",$C145&" ")),N(A145),N(A145)+1) -> 26 | B147: B677 | C147: BOUGIE EN PQUET DE 6PCES REF 075-45 CM | D147: 6 | E147: 650 | F147: 2 | H147: 2 | J147: 4
A148: Total 26 | I148: =SUBTOTAL(9,I147:I147) -> 0 | J148: =SUBTOTAL(9,J147:J147) -> 4 | K148: =SUBTOTAL(9,K147:K147) -> 0 | L148: =SUBTOTAL(9,L147:L147) -> 0
A149: =IF(LEFT($C149,SEARCH(" ",$C149&" "))=LEFT($C147,SEARCH(" ",$C147&" ")),N(A147),N(A147)+1) -> 27 | B149: B582 | C149: BROSSE A CHAUX | D149: 272 | E149: 400 | F149: 256 | H149: 256 | J149: 16
A150: 27 | B150: B413 | C150: BROSSE A CHAUX 3X12 M/PLASTIQUE | D150: 1 | E150: 350 | F150: 0 | H150: 0 | J150: 1
A151: 27 | B151: B1057 | C151: BROSSE A CHAUX M/P 3X10 REF 6028C | D151: 487 | E151: 550 | F151: 490 | H151: 490 | I151: 3
A152: 27 | B152: B1073 | C152: BROSSE A LINGE VIOLON CHIENENT M/B REF 722300 | D152: 196 | E152: 1700 | F152: 197 | H152: 197 | I152: 1
A153: 27 | B153: B1072 | C153: BROSSE A LINGE VIOLON JAUNE M/P REF 722959 | D153: 331 | E153: 750 | F153: 330 | H153: 330 | J153: 1
A154: 27 | B154: B654 | C154: BROSSE METALIQUE 3RANGEES | D154: 0 | E154: 250 | F154: 1 | G154: 1 | H154: 2 | I154: 2
A155: 27 | B155: B548 | C155: BROSSE METALIQUE 4RANGEES | D155: 1415 | E155: 200 | F155: 1060 | H155: 1060 | J155: 355
A156: 27 | B156: B613 | C156: BROSSE METALIQUE 5RANGEES | D156: 1903 | E156: 295 | F156: 2641 | H156: 2641 | I156: 738
A157: 27 | B157: B417 | C157: BROSSE METALIQUE EN JEU DE 3 PIECES | D157: 113 | E157: 650 | F157: 8 | H157: 8 | J157: 105
A158: =IF(LEFT($C158,SEARCH(" ",$C158&" "))=LEFT($C157,SEARCH(" ",$C157&" ")),N(A157),N(A157)+1) -> 27 | B158: B630 | C158: BROSSE METALIQUE JEUX 3 PIECES | D158: 237 | E158: 1000 | F158: 481 | H158: =F158+G158 -> 481 | I158: =IF(H158>D158,H158-D158,"") -> 244 | J158: =IF(H158<D158,D158-H158,"") -> 
A159: 27 | B159: B379 | C159: BROSSE METALIQUE RONDEDE 65MM | D159: 43 | E159: 450 | F159: 46 | H159: 46 | I159: 3
A160: 27 | B160: B623 | C160: BROSSE METALLIQUE 6 RANGEES | D160: 484 | E160: 300 | F160: 112 | G160: 1 | H160: 113 | J160: 371
A161: 27 | B161: B1052 | C161: BROSSE METALLIQUE JEUX 3PIECES REF 11118 | D161: 171 | E161: 900 | F161: 57 | H161: 57 | J161: 114
A162: 27 | B162: B635 | C162: BROSSE METALLIQUE M/PLAST 4RANGEES | D162: 406 | E162: 450 | F162: 388 | H162: 388 | J162: 18
A163: Total 27 | I163: =SUBTOTAL(9,I149:I162) -> 991 | J163: =SUBTOTAL(9,J149:J162) -> 981 | K163: =SUBTOTAL(9,K149:K162) -> 0 | L163: =SUBTOTAL(9,L149:L162) -> 0
A164: =IF(LEFT($C164,SEARCH(" ",$C164&" "))=LEFT($C162,SEARCH(" ",$C162&" ")),N(A162),N(A162)+1) -> 28 | B164: B433 | C164: BURIN PLAT PROTEGE DE 200 | D164: 171 | E164: 900 | F164: 335 | H164: 335 | I164: 164
A165: 28 | B165: B434 | C165: BURIN PLAT PROTEGE DE 250 | D165: 110 | E165: 1050 | F165: 112 | H165: 112 | I165: 2
A166: 28 | B166: B603 | C166: BURIN PLAT PROTEGE DE 350 | D166: 66 | E166: 900 | F166: 136 | H166: 136 | I166: 70
A167: 28 | B167: B616 | C167: BURIN PLAT PROTEGE DE 400 | D167: 48 | E167: 1400 | F167: 49 | H167: 49 | I167: 1
A168: 28 | B168: B443 | C168: BURIN POINTU PROTEGE DE 200 | D168: 175 | E168: 500 | F168: 49 | H168: 49 | J168: 126
A169: 28 | B169: B444 | C169: BURIN POINTU PROTEGE DE 250G | D169: 192 | E169: 850 | F169: 67 | H169: 67 | J169: 125
A170: 28 | B170: B446 | C170: BURIN POINTU PROTEGE DE 350 | D170: 109 | E170: 1100 | F170: 68 | H170: 68 | J170: 41
A171: 28 | B171: B447 | C171: BURIN POINTU PROTEGE DE 400 | D171: 128 | E171: 1250 | F171: 179 | H171: 179 | I171: 51
A172: Total 28 | I172: =SUBTOTAL(9,I164:I171) -> 288 | J172: =SUBTOTAL(9,J164:J171) -> 292 | K172: =SUBTOTAL(9,K164:K171) -> 0 | L172: =SUBTOTAL(9,L164:L171) -> 0
A173: =IF(LEFT($C173,SEARCH(" ",$C173&" "))=LEFT($C171,SEARCH(" ",$C171&" ")),N(A171),N(A171)+1) -> 29 | B173: C2514 | C173: CAHIER 17 X 22 200 PGES REF CS5 | D173: 24 | E173: 290 | F173: 0 | H173: 0 | J173: 24
A174: 29 | B174: C2513 | C174: CAHIER 17 X 22 288 PGES CS6 | D174: 98 | E174: 500 | F174: 51 | H174: 51 | J174: 47
A175: 29 | B175: C2672 | C175: CAHIER 17 X 22 32 PAGES REF CS1 | D175: 455 | E175: 80 | F175: 86 | H175: 86 | J175: 369
A176: 29 | B176: C2674 | C176: CAHIER 17 X 22 384 PGES REF CS7 | D176: 907 | E176: 600 | F176: 862 | H176: 862 | J176: 45
A177: 29 | B177: C2515 | C177: CAHIER 17 X 22 50 PGES REF CS2 | D177: 5265 | E177: 75 | F177: 5229 | H177: 5229 | J177: 36
A178: 29 | B178: C2685 | C178: CAHIER 17 X 22 EN 100 PAGES CS3 | D178: 57 | E178: 145 | F178: 53 | H178: 53 | J178: 4
A179: 29 | B179: C2673 | C179: CAHIER 17X22 144PGES CS2 | D179: 0 | E179: 225 | F179: 10 | H179: 10 | I179: 10
A180: 29 | B180: C4108 | C180: CAHIER 17X22 120PGES CS3 | D180: 4961 | E180: 200 | F180: 4705 | H180: 4705 | J180: 256
A181: 29 | B181: C4100 | C181: CAHIER 17X22 EN 300PGES SC6 | D181: 2567 | E181: 500 | F181: 3110 | H181: 3110 | I181: 543
A182: 29 | B182: C2517 | C182: CAHIER 210X297 100 PAGES | D182: 180 | E182: 400 | F182: 252 | H182: 252 | I182: 72
A183: 29 | B183: C2676 | C183: CAHIER GF GQ 21 X 29.7 200 PGES REF GFG2 | D183: 1279 | E183: 600 | F183: 1487 | H183: 1487 | I183: 208
A184: 29 | B184: C4095 | C184: CAHIER GF GQ 21X29.7 EN 300 PAGES TP | D184: 4172 | E184: 1050 | F184: 4167 | H184: 4167 | J184: 5
A185: 29 | B185: C2680 | C185: CAHIER SIMPLE ANGLO 17 X 22 20 LEAVES | D185: 1370 | E185: 70 | F185: 569 | H185: 569 | J185: 801
A186: 29 | B186: C2681 | C186: CAHIER SIMPLE ANGLO 17 X 22 40 LEAVES | D186: 0 | E186: 135 | F186: 46 | H186: 46 | I186: 46
A187: 29 | B187: C2683 | C187: CAHIER SIMPLE ANGLO 17 X 22 80 LEAVES | D187: 105 | E187: 200 | F187: 2 | H187: 2 | J187: 103
A188: 29 | B188: C4102 | C188: CAHIER SIMPLE ANGLO (PLANE LINE) 17X22 20 LEAVES | D188: 360 | E188: 70 | F188: 344 | H188: 344 | J188: 16
A189: 29 | B189: C4103 | C189: CAHIER SIMPLE ANGLO (PLANE LINE) 17X22 40 LEAVES | D189: 0 | E189: 135 | F189: 348 | H189: 348 | I189: 348
A190: 29 | B190: C4104 | C190: CAHIER SIMPLE ANGLO (PLANE LINE) 17X22 60 LEAVES | D190: 0 | E190: 275 | F190: 2 | H190: 2 | I190: 2
A191: 29 | B191: C4105 | C191: CAHIER SIMPLE ANGLO (HARD COVER) 21X29.7 200 LEAVES | D191: 2008 | E191: 1000 | F191: 1787 | H191: 1787 | J191: 221
A192: 29 | B192: C4106 | C192: CAHIER SIMPLE ANGLO (HARD COVER) 17X29.7 300LEAVES | D192: 705 | E192: 1600 | F192: 712 | H192: 712 | I192: 7
A193: 29 | B193: C4107 | C193: CAHIER SIMPLE ANGLO (HARD COVER) 17X29.7 400LEAVES | D193: 0 | E193: 1900 | F193: 5 | H193: 5 | I193: 5
A194: 29 | B194: C2518 | C194: CAHIER TP 21 X 29.7 144 PGES REF TP1 | D194: 710 | E194: 500 | F194: 702 | H194: 702 | J194: 8
A195: 29 | B195: C2675 | C195: CAHIER TP 21 X 29.7 200 PGES REF TP2 | D195: 220 | E195: 615 | F195: 234 | H195: 234 | I195: 14
A196: Total 29 | I196: =SUBTOTAL(9,I173:I195) -> 1255 | J196: =SUBTOTAL(9,J173:J195) -> 1935 | K196: =SUBTOTAL(9,K173:K195) -> 0 | L196: =SUBTOTAL(9,L173:L195) -> 0
A197: =IF(LEFT($C197,SEARCH(" ",$C197&" "))=LEFT($C195,SEARCH(" ",$C195&" ")),N(A195),N(A195)+1) -> 30 | B197: C2532 | C197: CALOT REGLABLE PAPIER 53 BLC (bte 100PCES) REF 45660 | D197: 99 | E197: 5100 | F197: 0 | H197: 0 | J197: 99
A198: Total 30 | I198: =SUBTOTAL(9,I197:I197) -> 0 | J198: =SUBTOTAL(9,J197:J197) -> 99 | K198: =SUBTOTAL(9,K197:K197) -> 0 | L198: =SUBTOTAL(9,L197:L197) -> 0
A199: =IF(LEFT($C199,SEARCH(" ",$C199&" "))=LEFT($C197,SEARCH(" ",$C197&" ")),N(A197),N(A197)+1) -> 31 | B199: C138 | C199: CAPTEUR REF 5273 | D199: 6 | E199: 7875 | F199: 1 | H199: 1 | J199: 5
A200: Total 31 | I200: =SUBTOTAL(9,I199:I199) -> 0 | J200: =SUBTOTAL(9,J199:J199) -> 5 | K200: =SUBTOTAL(9,K199:K199) -> 0 | L200: =SUBTOTAL(9,L199:L199) -> 0
... 1194 more rows

Sheet Feuil4

Sheet Feuil5
A1: Famille | B1: CODES | C1: DESIGNATIONS | D1: S. O | E1: P. U | F1: Stock physique | H1: Stock Total | I1: ECARTS | K1: Entrée | L1: Sortie | M1: Surplus | N1: Manquant | O1: OBSER
F2: Sain | G2: Avaries | I2: + | J2: -
A3: =IF(LEFT($C3,SEARCH(" ",$C3&" "))=LEFT($C2,SEARCH(" ",$C2&" ")),N(A2),N(A2)+1) -> 1 | B3: A488 | C3: ABATTANT WC BLANC LOURD | D3: 167 | E3: 4500 | F3: 146 | H3: =F3+G3 -> 146 | I3: =IF(H3>D3,H3-D3,"") ->  | J3: =IF(H3<D3,D3-H3,"") -> 21 | L3: 21
A4: =IF(LEFT($C4,SEARCH(" ",$C4&" "))=LEFT($C3,SEARCH(" ",$C3&" ")),N(A3),N(A3)+1) -> 1 | B4: A5 | C4: ABATTANT WC BLEU | D4: 5 | E4: 2500 | F4: 19 | G4: 7 | H4: =F4+G4 -> 26 | I4: =IF(H4>D4,H4-D4,"") -> 21 | J4: =IF(H4<D4,D4-H4,"") ->  | K4: 18
A5: 1 | B5: A462 | C5: ABATTANT WC LOURD ROSE | D5: 13 | E5: 2825 | F5: 0 | H5: 0 | J5: 13
A6: =IF(LEFT($C6,SEARCH(" ",$C6&" "))=LEFT($C5,SEARCH(" ",$C5&" ")),N(A5),N(A5)+1) -> 2 | B6: A10 | C6: ACIDE CHLORIDRIQUE 1L | D6: 6 | E6: 500 | F6: 10 | G6: 10 | H6: 20 | I6: 14 | K6: 11
A7: =IF(LEFT($C7,SEARCH(" ",$C7&" "))=LEFT($C6,SEARCH(" ",$C6&" ")),N(A6),N(A6)+1) -> 3 | B7: A456 | C7: AGRAFE 8/4 | D7: 20 | E7: 170 | H7: 0 | J7: 20 | O7: BPS
A8: =IF(LEFT($C8,SEARCH(" ",$C8&" "))=LEFT($C7,SEARCH(" ",$C7&" ")),N(A7),N(A7)+1) -> 4 | B8: A321 | C8: AMPOULE E14 POINTU 40W EMKAY | D8: 0 | E8: 60 | F8: 101 | G8: 101 | H8: 202 | I8: 202 | K8: 199
A9: 4 | B9: A271 | C9: AMPOULE PHILIPS B22 60W | D9: 0 | E9: 200 | F9: 20 | G9: 14 | H9: 34 | I9: 34 | K9: 31
A10: 4 | B10: A51 | C10: AMPOULE B22 TESLA BLANC 40W | D10: 458 | E10: 100 | F10: 332 | G10: 132 | H10: 464 | I10: 6 | K10: 3
A11: 4 | B11: A546 | C11: AMPOULE ECO LED B22 REF E02B02 BLANC 7W | D11: 120 | E11: 3000 | F11: 126 | H11: 126 | I11: 6 | K11: 3
A12: 4 | B12: A458 | C12: AMPOULE ECO PHILIP E27 | D12: 44 | E12: 1200 | F12: 35 | G12: 11 | H12: 46 | I12: 2 | K12: 1
A13: 4 | B13: A543 | C13: AMPOULE ECO PHILIPS E27 11W 3U PM | D13: 1 | E13: 1500 | F13: 0 | H13: 0 | J13: 1 | L13: 1
A14: 4 | B14: A459 | C14: AMPOULE ECO PHILIPS E27 14W | D14: 36 | E14: 1500 | F14: 0 | H14: 0 | J14: 36 | L14: 36
A15: 4 | B15: A566 | C15: AMPOULE ECO VIRONY B22 ES-003 DE 105W | D15: 0 | E15: 3000 | F15: 7 | G15: 7 | H15: 14 | I15: 14 | K15: 11
A16: 4 | B16: A216 | C16: AMPOULE ECONOMIQUE E27 2U 18W ESL (CJB) | D16: 36 | E16: 500 | F16: 20 | G16: 8 | H16: 28 | J16: 8 | L16: 8
A17: 4 | B17: A453 | C17: AMPOULE MAF DIRECT 450W | D17: 8 | E17: 2070 | F17: 6 | H17: 6 | J17: 2 | L17: 2
A18: 4 | B18: A192 | C18: AMPOULE MAF E27 DIRECT 250W | D18: 45 | E18: 1350 | F18: 66 | G18: 56 | H18: 122 | I18: 77 | K18: 74
A19: 4 | B19: A309 | C19: AMPOULE MAF E40 INDIRECT 250W | D19: 1 | E19: 1220 | F19: 42 | G19: 2 | H19: 44 | I19: 43 | K19: 40
A20: 4 | B20: A282 | C20: AMPOULE SPOT E27 60W R80 TOUTES COULEURS | D20: 425 | E20: 400 | F20: 560 | G20: 1 | H20: 561 | I20: 136 | K20: 133
A21: 4 | B21: A280 | C21: AMPOULE SPOT E27 40W R80 | D21: 206 | E21: 350 | F21: 175 | G21: 1 | H21: 176 | J21: 30 | L21: 30
A22: 4 | B22: A91 | C22: AMPOULE SPOT E27 BLANC 75W R60 | D22: 391 | E22: 400 | F22: 300 | H22: 300 | J22: 91 | L22: 91
A23: =IF(LEFT($C23,SEARCH(" ",$C23&" "))=LEFT($C22,SEARCH(" ",$C22&" ")),N(A22),N(A22)+1) -> 5 | B23: A415 | C23: ANTICHOC ALU DE 60 CM DROIT | D23: 92 | E23: 2200 | F23: 123 | H23: 123 | I23: 31 | K23: 28
A24: =IF(LEFT($C24,SEARCH(" ",$C24&" "))=LEFT($C23,SEARCH(" ",$C23&" ")),N(A23),N(A23)+1) -> 6 | B24: A111 | C24: ANTI-CHOC ALU DE 60 CM | D24: 125 | E24: 2000 | F24: 104 | H24: 104 | J24: 21 | L24: 21
A25: 6 | B25: A585 | C25: ANTI-CHOC ALU DROIT 80CM | D25: 59 | E25: 3500 | F25: 56 | H25: 56 | J25: 3 | L25: 3
A26: =IF(LEFT($C26,SEARCH(" ",$C26&" "))=LEFT($C25,SEARCH(" ",$C25&" ")),N(A25),N(A25)+1) -> 7 | B26: A394 | C26: ANTI-ROUILLE BR 1.2KG CAMERO PEINT | D26: 237 | E26: 1750 | F26: 238 | H26: 238 | I26: 1 | K26: 2
A27: 7 | B27: A259 | C27: ANTI-ROUILLE BRUN 1KG MPCC | D27: 110 | E27: 1950 | F27: 111 | G27: 1 | H27: 112 | I27: 2 | K27: 1
A28: 7 | B28: A286 | C28: ANTI-ROUILLE BRUN EN 5KG MPCC | D28: 16 | E28: 9900 | F28: 25 | H28: 25 | I28: 9 | K28: 6
A29: 7 | B29: A204 | C29: ANTI-ROUILLE ORANGE 2KG MPCC | D29: 1 | E29: 4300 | F29: 0 | H29: 0 | J29: 1
A30: 7 | B30: A275 | C30: ANTI-ROUILLE ORANGE DE 5 KG MPCC | D30: 9 | E30: 10800 | F30: 0 | H30: 0 | J30: 9
A31: =IF(LEFT($C31,SEARCH(" ",$C31&" "))=LEFT($C30,SEARCH(" ",$C30&" ")),N(A30),N(A30)+1) -> 8 | B31: A370 | C31: ARRACHE CLOU DE 40 | D31: 37 | E31: 900 | F31: 32 | H31: 32 | J31: 5
A32: 8 | B32: A125 | C32: ARRACHE CLOU DE 50 | D32: 6 | E32: 1500 | F32: 9 | H32: 9 | I32: 3 | K32: 0
A33: 8 | B33: A126 | C33: ARRACHE CLOU DE 60 | D33: 34 | E33: 1300 | F33: 36 | H33: 36 | I33: 2 | K33: 1
A34: =IF(LEFT($C34,SEARCH(" ",$C34&" "))=LEFT($C33,SEARCH(" ",$C33&" ")),N(A33),N(A33)+1) -> 8 | B34: A127 | C34: ARRACHE CLOU DE 70 | D34: 74 | E34: 2200 | F34: 6 | H34: 6 | J34: 68
A35: 8 | B35: A128 | C35: ARRACHE CLOU DE 80 | D35: 36 | E35: 2000 | F35: 60 | H35: 60 | I35: 24 | K35: 21
A36: =IF(LEFT($C36,SEARCH(" ",$C36&" "))=LEFT($C35,SEARCH(" ",$C35&" ")),N(A35),N(A35)+1) -> 9 | B36: A177 | C36: ATTACHE ELECT DE 14/100P | D36: 68 | E36: 500 | F36: 49 | H36: 49 | J36: 19
A37: 9 | B37: A170 | C37: ATTACHE ELECT DE 5/100P | D37: 4 | E37: 700 | F37: 0 | H37: 0 | J37: 4
A38: 9 | B38: A172 | C38: ATTACHE ELECT DE 7/100PCES | D38: 82 | E38: 125 | F38: 70 | H38: 70 | J38: 12
A39: 9 | B39: A174 | C39: ATTACHE ELECT DE 9/100PCES | D39: 0 | E39: 150 | F39: 3 | H39: 3 | I39: 3 | K39: 0
A40: =IF(LEFT($C40,SEARCH(" ",$C40&" "))=LEFT($C39,SEARCH(" ",$C39&" ")),N(A39),N(A39)+1) -> 10 | B40: A301 | C40: AUGE MACON PROGON DE 35 L REF 7735 | D40: 1 | E40: 6000 | F40: 0 | H40: 0 | J40: 1
A41: =IF(LEFT($C41,SEARCH(" ",$C41&" "))=LEFT($C40,SEARCH(" ",$C40&" ")),N(A40),N(A40)+1) -> 11 | B41: B33 | C41: BALAI CANTONNIER NYLON ROUGE | D41: 243 | E41: 2500 | F41: 99 | H41: 99 | J41: 144
A42: =IF(LEFT($C42,SEARCH(" ",$C42&" "))=LEFT($C41,SEARCH(" ",$C41&" ")),N(A41),N(A41)+1) -> 12 | B42: B61 | C42: BANDE ADHESIVE DE 25 CM | D42: 307 | E42: 200 | F42: 7 | H42: 7 | J42: 300
A43: 12 | B43: B646 | C43: BANDE THERMIQUE 57X40 | D43: 79 | E43: 300 | H43: 0 | J43: 79 | O43: BPS
A44: 12 | B44: B670 | C44: BANDE THERMIQUE 57X56 | D44: 13 | E44: 1500 | H44: 0 | J44: 13 | O44: BPS
A45: =IF(LEFT($C45,SEARCH(" ",$C45&" "))=LEFT($C44,SEARCH(" ",$C44&" ")),N(A44),N(A44)+1) -> 13 | B45: B1092 | C45: BARRE A MINE DE 1.750M FRANCAIS | D45: 5 | E45: 22100 | F45: 4 | H45: 4 | J45: 1
A46: 13 | B46: B75 | C46: BARRE A MINE DE 1.80 M | D46: 20 | E46: 10300 | F46: 3 | H46: 3 | J46: 17
A47: 13 | B47: B76 | C47: BARRE A MINE DE 2M | D47: 19 | E47: 11000 | F47: 38 | H47: 38 | I47: 19 | K47: 16
A48: 13 | B48: B1093 | C48: BARRE AMINE DE 2M FRANCAIS | D48: 5 | E48: 28250 | F48: 4 | H48: 4 | J48: 1
A49: =IF(LEFT($C49,SEARCH(" ",$C49&" "))=LEFT($C48,SEARCH(" ",$C48&" ")),N(A48),N(A48)+1) -> 14 | B49: B611 | C49: BATICIT A EAU BLANC DE 25 KG IMP. | D49: 1 | E49: 10500 | F49: 0 | H49: 0 | J49: 1
A50: =IF(LEFT($C50,SEARCH(" ",$C50&" "))=LEFT($C49,SEARCH(" ",$C49&" ")),N(A49),N(A49)+1) -> 15 | B50: B192 | C50: BATILAC A HUILE GRIS FONCE DE 2,5 KG | D50: 0 | E50: 3000 | F50: 2 | H50: 2 | I50: 2 | K50: 1
A51: 15 | B51: B43 | C51: BATILAC A HUILE MARRON CLAIRE EN 2.5KG | D51: 5 | E51: 3500 | F51: 0 | H51: 0 | J51: 5
A52: 15 | B52: B56 | C52: BATILAC A HUILE NOIR EN 2.5KG | D52: 1 | E52: 3500 | F52: 0 | H52: 0 | J52: 1
A53: 15 | B53: B608 | C53: BATILAC A HUILE JAUNE CUBA EN 2.5KG | D53: 8 | E53: 3000 | F53: 16 | H53: 16 | I53: 8 | K53: 5
A54: 15 | B54: B620 | C54: BATILAC A HUILE ROUGE DE 2,5 KG | D54: 0 | E54: 3000 | F54: 2 | H54: 2 | I54: 2 | K54: 1
A55: 15 | B55: B649 | C55: BATILAC A HUILE VERT JARDIN EN 2.5KG | D55: 1 | E55: 3500 | F55: 5 | G55: 1 | H55: 6 | I55: 5 | K55: 2
A56: 15 | B56: B662 | C56: BATILAC A HUILE BLANC DE 2,5 KG | D56: 0 | E56: 3500 | F56: 1 | H56: 1 | I56: 1 | K56: 2
A57: 15 | B57: B944 | C57: BATILAC A HUILE GRIS FONCE DE 1KG | D57: 1 | E57: 1000 | F57: 0 | H57: 0 | J57: 1
A58: 15 | B58: B947 | C58: BATILAC A HUILE VERT FONCE DE 1KG | D58: 2 | E58: 1000 | F58: 0 | H58: 0 | J58: 2
A59: 15 | B59: B952 | C59: BATILAC A HUILE JAUNE OXYDE DE 1KG | D59: 0 | E59: 1000 | F59: 1 | H59: 1 | I59: 1 | K59: 2
A60: 15 | B60: B954 | C60: BATILAC A HUILE VERT POIVRON DE 2,5KG | D60: 3 | E60: 3000 | F60: 0 | H60: 0 | J60: 3
A61: 15 | B61: B957 | C61: BATILAC HUILE MARRON FONCE EN 2.5KGS | D61: 58 | E61: 3000 | F61: 0 | H61: 0 | J61: 58
A62: =IF(LEFT($C62,SEARCH(" ",$C62&" "))=LEFT($C61,SEARCH(" ",$C61&" ")),N(A61),N(A61)+1) -> 16 | B62: B585 | C62: BATITEINTE BLEU IMP EN 180 G | D62: 14 | E62: 800 | F62: 13 | H62: 13 | J62: 1
A63: 16 | B63: B96 | C63: BATITEINTE MARRON IMP. 180G | D63: 361 | E63: 800 | F63: 426 | H63: 426 | I63: 65 | K63: 62
A64: 16 | B64: B633 | C64: BATITEINTE NOIR IMP EN 180 G | D64: 71 | E64: 800 | F64: 69 | H64: 69 | J64: 2
A65: =IF(LEFT($C65,SEARCH(" ",$C65&" "))=LEFT($C64,SEARCH(" ",$C64&" ")),N(A64),N(A64)+1) -> 16 | B65: B631 | C65: BATITEINTE ROUGE IMP EN 180 G | D65: 53 | E65: 800 | F65: 47 | H65: 47 | J65: 6
A66: =IF(LEFT($C66,SEARCH(" ",$C66&" "))=LEFT($C65,SEARCH(" ",$C65&" ")),N(A65),N(A65)+1) -> 17 | B66: B645 | C66: BATTERIE ONDULEUR 12V/12AP | D66: 2 | E66: 15350 | G66: 2 | H66: 2 | O66: BPS
A67: 17 | B67: B659 | C67: BATTERIE ONDULEUR 7H 12 AP | D67: 3 | E67: 12000 | G67: 3 | H67: 3 | O67: BPS
A68: =IF(LEFT($C68,SEARCH(" ",$C68&" "))=LEFT($C67,SEARCH(" ",$C67&" ")),N(A67),N(A67)+1) -> 18 | B68: B1078 | C68: BIC BLEU BEIFA EN PQT DE 50 PIECES | D68: 1 | E68: 2200 | G68: 1 | H68: =F68+G68 -> 1 | I68: =IF(H68>D68,H68-D68,"") ->  | J68: =IF(H68<D68,D68-H68,"") ->  | O68: BPS
A69: =IF(LEFT($C69,SEARCH(" ",$C69&" "))=LEFT($C68,SEARCH(" ",$C68&" ")),N(A68),N(A68)+1) -> 18 | B69: B732 | C69: BIC BLEU CH | D69: 144 | E69: 75 | G69: 144 | H69: 144 | O69: BPS
A70: 18 | B70: B877 | C70: BIC BLEU EN PAQUET DE 50 | D70: 200 | E70: 1000 | G70: 200 | H70: 200 | O70: BPS
A71: 18 | B71: B879 | C71: BIC NOIR EN PAQUET DE 50 | D71: 198 | E71: 1000 | G71: 198 | H71: 198 | O71: BPS
A72: 18 | B72: B734 | C72: BIC ROUGE CH | D72: 100 | E72: 75 | G72: 100 | H72: 100 | O72: BPS
A73: 18 | B73: B878 | C73: BIC ROUGE EN PIECES | D73: 6350 | E73: 100 | G73: 6350 | H73: 6350 | O73: BPS
A74: =IF(LEFT($C74,SEARCH(" ",$C74&" "))=LEFT($C73,SEARCH(" ",$C73&" ")),N(A73),N(A73)+1) -> 19 | B74: B6111 | C74: BLOC CUBIQUE | D74: 10 | E74: 500 | H74: 0 | J74: 10 | O74: BPS
A75: 19 | B75: B5766 | C75: BLOC NOTE GM | D75: 5 | E75: 620 | H75: 0 | J75: 5 | O75: BPS
A76: 19 | B76: B573 | C76: BLOC NOTE PM | D76: 10 | E76: 325 | H76: 0 | J76: 10 | O76: BPS
A77: =IF(LEFT($C77,SEARCH(" ",$C77&" "))=LEFT($C76,SEARCH(" ",$C76&" ")),N(A76),N(A76)+1) -> 20 | B77: B132 | C77: BOITE DE DERIVATION 150 X 150 | D77: 70 | E77: 1900 | F77: 67 | H77: 67 | J77: 3
A78: 20 | B78: B140 | C78: BOITE DE DERIVATION ENC 2316 | D78: 52 | E78: 1100 | F78: 1 | H78: 1 | J78: 51
A79: 20 | B79: B1004 | C79: BOITE DE DERIVATION ETANCHE IP44 80X80X40 | D79: 49 | E79: 400 | F79: 50 | H79: 50 | I79: 1 | K79: 2
A80: 20 | B80: B138 | C80: BOITE DE DERIVATION REF 2310 | D80: 359 | E80: 450 | F80: 370 | G80: 1 | H80: 371 | I80: 12 | K80: 9
A81: 20 | B81: B139 | C81: BOITE DE DERIVATION REF 2313 | D81: 0 | E81: 725 | F81: 45 | H81: 45 | I81: 45 | K81: 42
A82: 20 | B82: B545 | C82: BOITE ETANCHE RONDE 80X50 | D82: 59 | E82: 575 | F82: 63 | H82: 63 | I82: 4 | K82: 1
A83: =IF(LEFT($C83,SEARCH(" ",$C83&" "))=LEFT($C82,SEARCH(" ",$C82&" ")),N(A82),N(A82)+1) -> 21 | B83: B1048 | C83: BOITIER KRISBOW REF E08SE8011C | D83: 14 | E83: 250 | F83: 0 | H83: 0 | J83: 14
A84: 21 | B84: B612 | C84: BOITIER VENTOUSE LOURD | D84: 3417 | E84: 60 | F84: 3390 | G84: 2 | H84: 3392 | J84: 25
A85: =IF(LEFT($C85,SEARCH(" ",$C85&" "))=LEFT($C84,SEARCH(" ",$C84&" ")),N(A84),N(A84)+1) -> 22 | B85: B6155 | C85: BON DE COMMANDE SQC 99501- 100500 | D85: 7 | E85: 1100 | H85: 0 | J85: 7 | O85: BPS
A86: 22 | B86: B1046 | C86: BON DE MANUTENTION CAISSE DEPENSE | D86: 10 | E86: 240 | H86: 0 | J86: 10 | O86: BPS
A87: 22 | B87: B5477 | C87: BON DE RECEPTION COMMANDE CLIENT | D87: 1 | E87: 550 | H87: 0 | J87: 1 | O87: BPS
A88: 22 | B88: B29 | C88: BON D'ENTREE SQC | D88: 25 | E88: 550 | H88: 0 | J88: 25 | O88: BPS
A89: =IF(LEFT($C89,SEARCH(" ",$C89&" "))=LEFT($C88,SEARCH(" ",$C88&" ")),N(A88),N(A88)+1) -> 23 | B89: B628 | C89: BONDE EVIER SIMPLE 2BACS | D89: 30 | E89: 2150 | F89: 0 | H89: 0 | J89: 30
A90: 23 | B90: B152 | C90: BONDE LAVABO + CHAINE INOX LY468 | D90: 52 | E90: 1700 | F90: 37 | G90: 21 | H90: 58 | I90: 6 | K90: 3
A91: 23 | B91: B154 | C91: BONDE POUR RECEVEUR DE DOUCHE | D91: 12 | E91: 2020 | F91: 0 | H91: 0 | J91: 12
A92: =IF(LEFT($C92,SEARCH(" ",$C92&" "))=LEFT($C91,SEARCH(" ",$C91&" ")),N(A91),N(A91)+1) -> 24 | B92: B806 | C92: BOTTE DE SECU EN PVC P41 | D92: 10 | E92: 10350 | F92: 2 | H92: 2 | J92: 8
A93: 24 | B93: B807 | C93: BOTTE DE SECU EN PVC P42 | D93: 1 | E93: 10350 | F93: 0 | H93: 0 | J93: 1
A94: 24 | B94: B808 | C94: BOTTE DE SECU EN PVC P43 | D94: 2 | E94: 10350 | F94: 0 | H94: 0 | J94: 2
A95: 24 | B95: B809 | C95: BOTTE DE SECU EN PVC P44 | D95: 1 | E95: 10350 | F95: 0 | H95: 0 | J95: 1
A96: =IF(LEFT($C96,SEARCH(" ",$C96&" "))=LEFT($C95,SEARCH(" ",$C95&" ")),N(A95),N(A95)+1) -> 24 | B96: B818 | C96: BOTTE DE SECU EN PVC P46 | D96: 1 | E96: 10350 | F96: 0 | H96: 0 | J96: 1
A97: 24 | B97: B574 | C97: BOTTE DE SECURITE BELLOTA DE 40 | D97: 19 | E97: 9000 | F97: 18 | G97: 1 | H97: 19
A98: 24 | B98: B577 | C98: BOTTE DE SECURITE BELLOTA DE 41 | D98: 25 | E98: 9000 | F98: 36 | G98: 3 | H98: 39 | I98: 14 | K98: 11
A99: 24 | B99: B120 | C99: BOTTE DE SECURITE BELLOTA DE 43 | D99: 4 | E99: 9000 | F99: 5 | G99: 1 | H99: 6 | I99: 2 | K99: 1
A100: 24 | B100: B737 | C100: BOTTE DE SECURITE ITALY S5 DE 41 | D100: 24 | E100: 11500 | F100: 12 | H100: 12 | J100: 12
A101: 24 | B101: B738 | C101: BOTTE DE SECURITE ITALY S5 DE 43 | D101: 24 | E101: 11500 | F101: 25 | H101: 25 | I101: 1 | K101: 2
A102: 24 | B102: B739 | C102: BOTTE DE SECURITE ITALY S5 DE 44 | D102: 35 | E102: 11500 | F102: 23 | H102: 23 | J102: 12
A103: 24 | B103: B160 | C103: BOTTE DE SECURITE ITALY S5 DE 45 | D103: 33 | E103: 11500 | F103: 30 | H103: 30 | J103: 3
A104: 24 | B104: B638 | C104: BOTTE PVC ITALY 41 | D104: 78 | E104: 4500 | F104: 15 | H104: 15 | J104: 63
A105: 24 | B105: B824 | C105: BOTTE PVC ITALY 44 | D105: 277 | E105: 4500 | F105: 347 | H105: 347 | I105: 70 | K105: 67
A106: 24 | B106: B823 | C106: BOTTE PVC ITALY 43 | D106: 244 | E106: 4500 | F106: 228 | H106: 228 | J106: 16
A107: 24 | B107: B729 | C107: BOTTE PVC ITALY 45 | D107: 125 | E107: 4500 | F107: 136 | H107: 136 | I107: 11 | K107: 8
A108: 24 | B108: B811 | C108: BOTTE PVC ITALY 40 | D108: 3 | E108: 4500 | F108: 5 | H108: 5 | I108: 2 | K108: 1
A109: 24 | B109: B822 | C109: BOTTE PVC ITALY 42 | D109: 267 | E109: 4500 | F109: 283 | H109: 283 | I109: 16 | K109: 13
A110: =IF(LEFT($C110,SEARCH(" ",$C110&" "))=LEFT($C109,SEARCH(" ",$C109&" ")),N(A109),N(A109)+1) -> 25 | B110: B169 | C110: BOUCHON GALVA FEMELLE 20/27 | D110: 242 | E110: 65 | F110: 154 | H110: 154 | J110: 88
A111: 25 | B111: B170 | C111: BOUCHON GALVA FEMELLE 26/34 | D111: 1 | E111: 120 | F111: 5 | H111: 5 | I111: 4 | K111: 1
A112: 25 | B112: B579 | C112: BOUCHON GALVA FEMELLE 40/49 | D112: 13 | E112: 185 | F112: 14 | H112: 14 | I112: 1 | K112: 2
A113: 25 | B113: B171 | C113: BOUCHON GALVA MALE 15/21 | D113: 6 | E113: 45 | F113: 0 | H113: 0 | J113: 6
A114: 25 | B114: B172 | C114: BOUCHON GALVA MALE 20/27 | D114: 399 | E114: 50 | F114: 441 | H114: 441 | I114: 42 | K114: 39
A115: 25 | B115: B173 | C115: BOUCHON GALVA MALE 26/34 | D115: 67 | E115: 80 | F115: 69 | H115: 69 | I115: 2 | K115: 1
A116: 25 | B116: B520 | C116: BOUCHON GALVA MALE 33/42 | D116: 17 | E116: 150 | F116: 18 | H116: 18 | I116: 1 | K116: 2
A117: 25 | B117: B1040 | C117: BOUCHON OREILLE VENITEX REF CONICAP 01 | D117: 161 | E117: 500 | F117: 174 | H117: 174 | I117: 13 | K117: 10
A118: 25 | B118: B174 | C118: BOUCHON PVC DE 32 | D118: 6 | E118: 200 | F118: 5 | H118: 5 | J118: 1
A119: 25 | B119: B176 | C119: BOUCHON PVC DE 50 | D119: 179 | E119: 300 | F119: 178 | H119: 178 | J119: 1
A120: 25 | B120: B177 | C120: BOUCHON PVC DE 63 | D120: 196 | E120: 500 | F120: 193 | H120: 193 | J120: 3
A121: 25 | B121: B178 | C121: BOUCHON PVC DE 100 | D121: 453 | E121: 1100 | F121: 462 | H121: 462 | I121: 9 | K121: 6
A122: =IF(LEFT($C122,SEARCH(" ",$C122&" "))=LEFT($C121,SEARCH(" ",$C121&" ")),N(A121),N(A121)+1) -> 26 | B122: B677 | C122: BOUGIE EN PQUET DE 6PCES REF 075-45 CM | D122: 6 | E122: 650 | F122: 2 | H122: 2 | J122: 4
A123: =IF(LEFT($C123,SEARCH(" ",$C123&" "))=LEFT($C122,SEARCH(" ",$C122&" ")),N(A122),N(A122)+1) -> 27 | B123: B582 | C123: BROSSE A CHAUX | D123: 272 | E123: 400 | F123: 256 | H123: 256 | J123: 16
A124: 27 | B124: B413 | C124: BROSSE A CHAUX 3X12 M/PLASTIQUE | D124: 1 | E124: 350 | F124: 0 | H124: 0 | J124: 1
A125: 27 | B125: B1057 | C125: BROSSE A CHAUX M/P 3X10 REF 6028C | D125: 487 | E125: 550 | F125: 490 | H125: 490 | I125: 3 | K125: 0
A126: 27 | B126: B1073 | C126: BROSSE A LINGE VIOLON CHIENENT M/B REF 722300 | D126: 196 | E126: 1700 | F126: 197 | H126: 197 | I126: 1 | K126: 2
A127: =IF(LEFT($C127,SEARCH(" ",$C127&" "))=LEFT($C126,SEARCH(" ",$C126&" ")),N(A126),N(A126)+1) -> 27 | B127: B1072 | C127: BROSSE A LINGE VIOLON JAUNE M/P REF 722959 | D127: 331 | E127: 750 | F127: 330 | H127: 330 | J127: 1
A128: 27 | B128: B654 | C128: BROSSE METALIQUE 3RANGEES | D128: 0 | E128: 250 | F128: 1 | G128: 1 | H128: 2 | I128: 2 | K128: 1
A129: 27 | B129: B548 | C129: BROSSE METALIQUE 4RANGEES | D129: 1415 | E129: 200 | F129: 1060 | H129: 1060 | J129: 355
A130: 27 | B130: B613 | C130: BROSSE METALIQUE 5RANGEES | D130: 1903 | E130: 295 | F130: 2641 | H130: 2641 | I130: 738 | K130: 735
A131: 27 | B131: B417 | C131: BROSSE METALIQUE EN JEU DE 3 PIECES | D131: 113 | E131: 650 | F131: 8 | H131: 8 | J131: 105
A132: =IF(LEFT($C132,SEARCH(" ",$C132&" "))=LEFT($C131,SEARCH(" ",$C131&" ")),N(A131),N(A131)+1) -> 27 | B132: B630 | C132: BROSSE METALIQUE JEUX 3 PIECES | D132: 237 | E132: 1000 | F132: 481 | H132: =F132+G132 -> 481 | I132: =IF(H132>D132,H132-D132,"") -> 244 | J132: =IF(H132<D132,D132-H132,"") ->  | K132: 241
A133: 27 | B133: B379 | C133: BROSSE METALIQUE RONDEDE 65MM | D133: 43 | E133: 450 | F133: 46 | H133: 46 | I133: 3 | K133: 0
A134: 27 | B134: B623 | C134: BROSSE METALLIQUE 6 RANGEES | D134: 484 | E134: 300 | F134: 112 | G134: 1 | H134: 113 | J134: 371
A135: 27 | B135: B1052 | C135: BROSSE METALLIQUE JEUX 3PIECES REF 11118 | D135: 171 | E135: 900 | F135: 57 | H135: 57 | J135: 114
A136: 27 | B136: B635 | C136: BROSSE METALLIQUE M/PLAST 4RANGEES | D136: 406 | E136: 450 | F136: 388 | H136: 388 | J136: 18
A137: =IF(LEFT($C137,SEARCH(" ",$C137&" "))=LEFT($C136,SEARCH(" ",$C136&" ")),N(A136),N(A136)+1) -> 28 | B137: B433 | C137: BURIN PLAT PROTEGE DE 200 | D137: 171 | E137: 900 | F137: 335 | H137: 335 | I137: 164 | K137: 161
A138: 28 | B138: B434 | C138: BURIN PLAT PROTEGE DE 250 | D138: 110 | E138: 1050 | F138: 112 | H138: 112 | I138: 2 | K138: 1
A139: 28 | B139: B603 | C139: BURIN PLAT PROTEGE DE 350 | D139: 66 | E139: 900 | F139: 136 | H139: 136 | I139: 70 | K139: 67
A140: 28 | B140: B616 | C140: BURIN PLAT PROTEGE DE 400 | D140: 48 | E140: 1400 | F140: 49 | H140: 49 | I140: 1 | K140: 2
A141: 28 | B141: B443 | C141: BURIN POINTU PROTEGE DE 200 | D141: 175 | E141: 500 | F141: 49 | H141: 49 | J141: 126
A142: 28 | B142: B444 | C142: BURIN POINTU PROTEGE DE 250G | D142: 192 | E142: 850 | F142: 67 | H142: 67 | J142: 125
A143: 28 | B143: B446 | C143: BURIN POINTU PROTEGE DE 350 | D143: 109 | E143: 1100 | F143: 68 | H143: 68 | J143: 41
A144: 28 | B144: B447 | C144: BURIN POINTU PROTEGE DE 400 | D144: 128 | E144: 1250 | F144: 179 | H144: 179 | I144: 51 | K144: 48
A145: =IF(LEFT($C145,SEARCH(" ",$C145&" "))=LEFT($C144,SEARCH(" ",$C144&" ")),N(A144),N(A144)+1) -> 29 | B145: C2514 | C145: CAHIER 17 X 22 200 PGES REF CS5 | D145: 24 | E145: 290 | F145: 0 | H145: 0 | J145: 24
A146: 29 | B146: C2513 | C146: CAHIER 17 X 22 288 PGES CS6 | D146: 98 | E146: 500 | F146: 51 | H146: 51 | J146: 47
A147: 29 | B147: C2672 | C147: CAHIER 17 X 22 32 PAGES REF CS1 | D147: 455 | E147: 80 | F147: 86 | H147: 86 | J147: 369
A148: 29 | B148: C2674 | C148: CAHIER 17 X 22 384 PGES REF CS7 | D148: 907 | E148: 600 | F148: 862 | H148: 862 | J148: 45
A149: 29 | B149: C2515 | C149: CAHIER 17 X 22 50 PGES REF CS2 | D149: 5265 | E149: 75 | F149: 5229 | H149: 5229 | J149: 36
A150: 29 | B150: C2685 | C150: CAHIER 17 X 22 EN 100 PAGES CS3 | D150: 57 | E150: 145 | F150: 53 | H150: 53 | J150: 4
A151: 29 | B151: C2673 | C151: CAHIER 17X22 144PGES CS2 | D151: 0 | E151: 225 | F151: 10 | H151: 10 | I151: 10 | K151: 7
A152: 29 | B152: C4108 | C152: CAHIER 17X22 120PGES CS3 | D152: 4961 | E152: 200 | F152: 4705 | H152: 4705 | J152: 256
A153: 29 | B153: C4100 | C153: CAHIER 17X22 EN 300PGES SC6 | D153: 2567 | E153: 500 | F153: 3110 | H153: 3110 | I153: 543 | K153: 540
A154: 29 | B154: C2517 | C154: CAHIER 210X297 100 PAGES | D154: 180 | E154: 400 | F154: 252 | H154: 252 | I154: 72 | K154: 69
A155: 29 | B155: C2676 | C155: CAHIER GF GQ 21 X 29.7 200 PGES REF GFG2 | D155: 1279 | E155: 600 | F155: 1487 | H155: 1487 | I155: 208 | K155: 205
A156: 29 | B156: C4095 | C156: CAHIER GF GQ 21X29.7 EN 300 PAGES TP | D156: 4172 | E156: 1050 | F156: 4167 | H156: 4167 | J156: 5
A157: 29 | B157: C2680 | C157: CAHIER SIMPLE ANGLO 17 X 22 20 LEAVES | D157: 1370 | E157: 70 | F157: 569 | H157: 569 | J157: 801
A158: =IF(LEFT($C158,SEARCH(" ",$C158&" "))=LEFT($C157,SEARCH(" ",$C157&" ")),N(A157),N(A157)+1) -> 29 | B158: C2681 | C158: CAHIER SIMPLE ANGLO 17 X 22 40 LEAVES | D158: 0 | E158: 135 | F158: 46 | H158: 46 | I158: 46 | K158: 43
A159: 29 | B159: C2683 | C159: CAHIER SIMPLE ANGLO 17 X 22 80 LEAVES | D159: 105 | E159: 200 | F159: 2 | H159: 2 | J159: 103
A160: 29 | B160: C4102 | C160: CAHIER SIMPLE ANGLO (PLANE LINE) 17X22 20 LEAVES | D160: 360 | E160: 70 | F160: 344 | H160: 344 | J160: 16
A161: 29 | B161: C4103 | C161: CAHIER SIMPLE ANGLO (PLANE LINE) 17X22 40 LEAVES | D161: 0 | E161: 135 | F161: 348 | H161: 348 | I161: 348 | K161: 345
A162: 29 | B162: C4104 | C162: CAHIER SIMPLE ANGLO (PLANE LINE) 17X22 60 LEAVES | D162: 0 | E162: 275 | F162: 2 | H162: 2 | I162: 2 | K162: 1
A163: 29 | B163: C4105 | C163: CAHIER SIMPLE ANGLO (HARD COVER) 21X29.7 200 LEAVES | D163: 2008 | E163: 1000 | F163: 1787 | H163: 1787 | J163: 221
A164: 29 | B164: C4106 | C164: CAHIER SIMPLE ANGLO (HARD COVER) 17X29.7 300LEAVES | D164: 705 | E164: 1600 | F164: 712 | H164: 712 | I164: 7 | K164: 4
A165: 29 | B165: C4107 | C165: CAHIER SIMPLE ANGLO (HARD COVER) 17X29.7 400LEAVES | D165: 0 | E165: 1900 | F165: 5 | H165: 5 | I165: 5 | K165: 2
A166: 29 | B166: C2518 | C166: CAHIER TP 21 X 29.7 144 PGES REF TP1 | D166: 710 | E166: 500 | F166: 702 | H166: 702 | J166: 8
A167: 29 | B167: C2675 | C167: CAHIER TP 21 X 29.7 200 PGES REF TP2 | D167: 220 | E167: 615 | F167: 234 | H167: 234 | I167: 14 | K167: 11
A168: =IF(LEFT($C168,SEARCH(" ",$C168&" "))=LEFT($C167,SEARCH(" ",$C167&" ")),N(A167),N(A167)+1) -> 30 | B168: C2532 | C168: CALOT REGLABLE PAPIER 53 BLC (bte 100PCES) REF 45660 | D168: 99 | E168: 5100 | F168: 0 | H168: 0 | J168: 99
A169: =IF(LEFT($C169,SEARCH(" ",$C169&" "))=LEFT($C168,SEARCH(" ",$C168&" ")),N(A168),N(A168)+1) -> 31 | B169: C138 | C169: CAPTEUR REF 5273 | D169: 6 | E169: 7875 | F169: 1 | H169: 1 | J169: 5
A170: =IF(LEFT($C170,SEARCH(" ",$C170&" "))=LEFT($C169,SEARCH(" ",$C169&" ")),N(A169),N(A169)+1) -> 32 | B170: C1020/2 | C170: CAREEAU 10X20 RUSTIQUE REF AH2018 1C=0.6M² | D170: 0 | E170: 4000 | F170: 10.2 | H170: 10.2 | I170: 10.2 | K170: 7.2
A171: 32 | B171: C1020/3 | C171: CAREEAU 10X20 RUSTIQUE REF AH2018 1C=0.6M² | D171: 5.36 | E171: 4000 | F171: 4.68 | H171: 4.68 | J171: 0.68
A172: =IF(LEFT($C172,SEARCH(" ",$C172&" "))=LEFT($C171,SEARCH(" ",$C171&" ")),N(A171),N(A171)+1) -> 33 | B172: C1326/1 | C172: CARREAU 13X26 RUSTIQUE REF. AC1310 0.676M2/C | D172: 22.984 | E172: 4000 | F172: 21.632 | H172: 21.632 | J172: 1.352 | L172: 1.352
A173: 33 | B173: C1326/2 | C173: CARREAU 13X26 RUSTIQUE REF. AC1319 0.676M2/C | D173: 0 | E173: 4000 | F173: 20.28 | H173: 20.28 | I173: 20.28 | K173: 17.28
A174: 33 | B174: C1326/4 | C174: CARREAU 13X26 RUSTIQUE REF. AF1340 0,676M2/C | D174: 57.36 | E174: 4000 | F174: 58.136 | H174: 58.136 | I174: 0.776 | K174: 2.224
A175: 33 | B175: C1428/2 | C175: CARREAU 14X28 RUSTIQUE BEIGE REF. H1401 0.588M2/C | D175: 19.417 | E175: 4350 | F175: 37.04 | H175: 37.04 | I175: 17.623 | K175: 14.623
A176: 33 | B176: C1428/3 | C176: CARREAU 14X28 RUSTIQUE BEIGE REF. N* 2812 0.988M2/C | D176: 158.949 | E176: 4350 | F176: 157.092 | H176: 157.092 | J176: 1.857 | L176: 1.857
A177: 33 | B177: C1428/5 | C177: CARREAU 14X28 RUSTIQUE BEIGE REF. N* G1401 0.588M2/C | D177: 18.652 | E177: 4350 | F177: 4.764 | H177: 4.764 | J177: 13.888 | L177: 13.888
A178: 33 | B178: C1428/6 | C178: CARREAU 14X28 RUSTIQUE ROUGE REF. N* G1407 0.588M2/C | D178: 45.864 | E178: 4350 | F178: 19.4 | G178: 19.4 | H178: 38.8 | J178: 7.064 | L178: 7.064
A179: 33 | B179: C1428/4 | C179: CARREAU 14X28 RUSTIQUE ROUGE REF. N*2816 0.988M2/C | D179: 24.761 | E179: 4350 | F179: 72.124 | H179: 72.124 | I179: 47.363 | K179: 44.363
A180: 33 | B180: C1428/7 | C180: CARREAU 14X28 RUSTIQUE VERT REF. N*H1405 0.627M²/C | D180: 23.12 | E180: 4350 | F180: 53.922 | H180: 53.922 | I180: 30.802 | K180: 27.802
A181: 33 | B181: C1428/8 | C181: CARREAU 14X28 RUSTIQUE VERT REF.N*G1405 0.588M²/C | D181: 62.916 | E181: 4350 | F181: 33.516 | H181: 33.516 | J181: 29.4 | L181: 29.4
A182: 33 | B182: C167 | C182: CARREAU 15X15 BLANC LEGER 1C =1M2 | D182: 126 | E182: 2350 | F182: 0 | H182: 0 | J182: 126 | L182: 126
A183: 33 | B183: C2025/3 | C183: CARREAU 20X25 ITALIA ARMONI BLEU 1.5M²/C | D183: 301.45 | E183: 4275 | F183: 312 | H183: 312 | I183: 10.55 | K183: 7.55
A184: 33 | B184: C2025/2 | C184: CARREAU 20X25 ITALIA BETON GRIS FONCE 1.85M²/C | D184: 386.6 | E184: 3600 | F184: 390.35 | H184: 390.35 | I184: 3.75 | K184: 0.75
A185: 33 | B185: C2030/70 | C185: CARREAU 20X30 JADE D. VERT 1.5M2/C | D185: 108 | E185: 2900 | F185: 56.4 | G185: 2.4 | H185: 58.8 | J185: 49.2 | L185: 49.2
A186: 33 | B186: C2030/101 | C186: CARREAU 20X30 M32A20302 1.5M2/C | D186: 52.02 | E186: 2900 | F186: 60 | H186: 60 | I186: 7.98 | K186: 4.98
A187: 33 | B187: C2030/100 | C187: CARREAU 20X30 M32A20306 1.5M2/C | D187: 63 | E187: 2900 | F187: 51 | H187: 51 | J187: 12 | L187: 12
A188: 33 | B188: C2030/60 | C188: CARREAU 20X30 MASSA D. GRIS 1.5M2/C | D188: 41.88 | E188: 2900 | F188: 37.5 | G188: 37.5 | H188: 75 | I188: 33.12 | K188: 30.12
A189: 33 | B189: C2030/61 | C189: CARREAU 20X30 MASSA D. ROSE 1.5M2/C | D189: 186 | E189: 2900 | F189: 183 | H189: 183 | J189: 3 | L189: 3
A190: 33 | B190: C2030/57 | C190: CARREAU 20X30 MASSA L GRIS 1.5M2/C | D190: 18.34 | E190: 3000 | F190: 0 | H190: 0 | J190: 18.34 | L190: 18.34
A191: 33 | B191: C2030/59 | C191: CARREAU 20X30 MASSA L. BEIGE 1.5M2/C | D191: 13.5 | E191: 2900 | F191: 0 | H191: 0 | J191: 13.5 | L191: 13.5
A192: 33 | B192: C2030/73 | C192: CARREAU 20X30 MASSA WIN BEIGE DECOR/PLAQUE | D192: 70 | E192: 1250 | F192: 0 | H192: 0 | J192: 70 | L192: 70
A193: 33 | B193: C2030/86 | C193: CARREAU 20X30 REF 2313L BLANC 1.5M²/C | D193: 33 | E193: 2900 | F193: 0 | H193: 0 | J193: 33 | L193: 33
A194: 33 | B194: C2030/91 | C194: CARREAU 20X30 REF 2609 BLANC 1.5M²/C | D194: 135 | E194: 2900 | F194: 175.5 | H194: 175.5 | I194: 40.5 | K194: 37.5
A195: 33 | B195: C2030/89 | C195: CARREAU 20X30 REF 306 BLANC 1.5M²/C | D195: 124.5 | E195: 2900 | F195: 126 | G195: 1.5 | H195: 127.5 | I195: 3 | K195: 0
A196: =IF(LEFT($C196,SEARCH(" ",$C196&" "))=LEFT($C195,SEARCH(" ",$C195&" ")),N(A195),N(A195)+1) -> 33 | B196: C2030/105 | C196: CARREAU 20X30 REF M32A100524 1.5M²/C | D196: 70.5 | E196: 2900 | F196: 61.5 | H196: =F196+G196 -> 61.5 | I196: =IF(H196>D196,H196-D196,"") ->  | J196: =IF(H196<D196,D196-H196,"") -> 9 | L196: 9
A197: 33 | B197: C2030/90 | C197: CARREAU 20X30 REF S23005 BLANC 1.5M²/C | D197: 175.5 | E197: 2900 | F197: 154.5 | H197: 154.5 | J197: 21 | L197: 21
A198: 33 | B198: C2030/34 | C198: CARREAU 20X30 REF.7147B | D198: 15 | E198: 2900 | F198: 0 | H198: 0 | J198: 15 | L198: 15
A199: 33 | B199: C2030/33 | C199: CARREAU 20X30 REF.7147D 1.5M2/C | D199: 12 | E199: 2900 | F199: 0 | H199: 0 | J199: 12 | L199: 12
A200: 33 | B200: C2030/38 | C200: CARREAU 20X30 REF.8003A 1.5M2/C | D200: 15 | E200: 3280 | F200: 6 | G200: 6 | H200: 12 | J200: 3 | L200: 3
... 950 more rows

Sheet Feuil6
A1: Famille | B1: CODES | C1: DESIGNATIONS | D1: S. O | E1: P. U | F1: S. PHY | G1: AVARIES | L1: OBSER
H2: + | I2: - | J2: Entrée | K2: Sortie
A3: =IF(LEFT($C3,SEARCH(" ",$C3&" "))=LEFT($C2,SEARCH(" ",$C2&" ")),N(A2),N(A2)+1) -> 1 | B3: A463 | C3: ABAT JOUR E40 400W | D3: 2 | E3: 100000 | F3: 2 | H3: =IF(F3>D3,F3-D3,"") ->  | I3: =IF(F3<D3,D3-F3,"") -> 
A5: =IF(LEFT($C5,SEARCH(" ",$C5&" "))=LEFT($C3,SEARCH(" ",$C3&" ")),N(A3),N(A3)+1) -> 2 | B5: A4 | C5: ABATTANT WC BLANC | D5: 121 | E5: 2000 | F5: 121
A6: =IF(LEFT($C6,SEARCH(" ",$C6&" "))=LEFT($C5,SEARCH(" ",$C5&" ")),N(A5),N(A5)+1) -> 2 | B6: A488 | C6: ABATTANT WC BLANC LOURD | D6: 167 | E6: 4500 | F6: 146 | I6: 21 | K6: 14
A7: 2 | B7: A5 | C7: ABATTANT WC BLEU | D7: 5 | E7: 2500 | F7: 19 | G7: 7 | H7: 14 | J7: 14
A8: 2 | B8: A462 | C8: ABATTANT WC LOURD ROSE | D8: 13 | E8: 2825 | F8: 0 | I8: 13
A9: 2 | B9: A7 | C9: ABATTANT WC ROSE | D9: 30 | E9: 2100 | F9: 30 | G9: 4
A11: =IF(LEFT($C11,SEARCH(" ",$C11&" "))=LEFT($C9,SEARCH(" ",$C9&" ")),N(A9),N(A9)+1) -> 3 | B11: A10 | C11: ACIDE CHLORIDRIQUE 1L | D11: 6 | E11: 500 | F11: 10 | G11: 10 | H11: 4
A12: 3 | B12: A11 | C12: ACIDE CHLORIDRIQUE EN 35KG | D12: 93 | E12: 11500 | F12: 93
A14: =IF(LEFT($C14,SEARCH(" ",$C14&" "))=LEFT($C12,SEARCH(" ",$C12&" ")),N(A12),N(A12)+1) -> 4 | B14: A456 | C14: AGRAFE 8/4 | D14: 20 | E14: 170 | I14: 20 | L14: BPS
A16: =IF(LEFT($C16,SEARCH(" ",$C16&" "))=LEFT($C14,SEARCH(" ",$C14&" ")),N(A14),N(A14)+1) -> 5 | B16: A321 | C16: AMPOULE E14 POINTU 40W EMKAY | D16: 0 | E16: 60 | F16: 101 | G16: 101 | H16: 101
A17: 5 | B17: A271 | C17: AMPOULE PHILIPS B22 60W | D17: 0 | E17: 200 | F17: 20 | G17: 14 | H17: 20
A18: 5 | B18: A51 | C18: AMPOULE B22 TESLA BLANC 40W | D18: 458 | E18: 100 | F18: 332 | G18: 132 | I18: 126
A19: 5 | B19: A545 | C19: AMPOULE ECO LED B22 REF E02B01 BLANC 5W | D19: 172 | E19: 2000 | F19: 172
A20: 5 | B20: A546 | C20: AMPOULE ECO LED B22 REF E02B02 BLANC 7W | D20: 120 | E20: 3000 | F20: 126 | H20: 6
A21: 5 | B21: A458 | C21: AMPOULE ECO PHILIP E27 | D21: 44 | E21: 1200 | F21: 35 | G21: 11 | I21: 9
A22: 5 | B22: A544 | C22: AMPOULE ECO PHILIPS 20W E27 4U | D22: 109 | E22: 2000 | F22: 109 | G22: 3
A23: 5 | B23: A543 | C23: AMPOULE ECO PHILIPS E27 11W 3U PM | D23: 1 | E23: 1500 | F23: 0 | I23: 1
A24: 5 | B24: A459 | C24: AMPOULE ECO PHILIPS E27 14W | D24: 36 | E24: 1500 | F24: 0 | I24: 36
A25: 5 | B25: A566 | C25: AMPOULE ECO VIRONY B22 ES-003 DE 105W | D25: 0 | E25: 3000 | F25: 7 | G25: 7 | H25: 7
A26: 5 | B26: A499 | C26: AMPOULE ECO SUNNY STAR B22 105W | D26: 395 | E26: 3500 | F26: 395
A27: 5 | B27: A497 | C27: AMPOULE ECO SUNNY STAR B22 85W | D27: 374 | E27: 3000 | F27: 374
A28: 5 | B28: A216 | C28: AMPOULE ECONOMIQUE E27 2U 18W ESL (CJB) | D28: 36 | E28: 500 | F28: 20 | G28: 8 | I28: 16
A29: 5 | B29: A121 | C29: AMPOULE ECONOMIQUE EN SPIRALE B22 GM 36W ESL (CJB) | D29: 1 | E29: 850 | F29: 1
A30: 5 | B30: A114 | C30: AMPOULE ECONOMIQUE EN SPIRALE B22 PM 26W ESL | D30: 3 | E30: 700 | F30: 3
A31: 5 | B31: A453 | C31: AMPOULE MAF DIRECT 450W | D31: 8 | E31: 2070 | F31: 6 | I31: 2
A32: 5 | B32: A192 | C32: AMPOULE MAF E27 DIRECT 250W | D32: 45 | E32: 1350 | F32: 66 | G32: 56 | H32: 21
A33: 5 | B33: A309 | C33: AMPOULE MAF E40 INDIRECT 250W | D33: 1 | E33: 1220 | F33: 42 | G33: 2 | H33: 41
A34: 5 | B34: A454 | C34: AMPOULE MAF INDIRECT 450W | D34: 8 | E34: 2070 | F34: 8 | G34: 8
A35: 5 | B35: A282 | C35: AMPOULE SPOT E27 60W R80 TOUTES COULEURS | D35: 425 | E35: 400 | F35: 560 | G35: 1 | H35: 135
A36: 5 | B36: A280 | C36: AMPOULE SPOT E27 40W R80 | D36: 206 | E36: 350 | F36: 175 | G36: 1 | I36: 31
A37: 5 | B37: A91 | C37: AMPOULE SPOT E27 BLANC 75W R60 | D37: 391 | E37: 400 | F37: 300 | I37: 91
A39: =IF(LEFT($C39,SEARCH(" ",$C39&" "))=LEFT($C37,SEARCH(" ",$C37&" ")),N(A37),N(A37)+1) -> 6 | B39: A388 | C39: ANTENNE SNA 12 ELEMENT GM REF B-13 | D39: 7 | E39: 3600 | F39: 7 | G39: 7
A40: 6 | B40: A392 | C40: ANTENNE TELE REF B-12 | D40: 1 | E40: 1620 | F40: 1 | G40: 1
A41: 6 | B41: A393 | C41: ANTENNE TELE REF B13-13 | D41: 5 | E41: 3000 | F41: 5 | G41: 5
A42: 6 | B42: A387 | C42: ANTENNE TELE REF WA850TGF | D42: 1 | E42: 5400 | F42: 1 | G42: 1
A43: 6 | B43: A386 | C43: ANTENNE TELE REF WA893TG | D43: 2 | E43: 5400 | F43: 2 | G43: 2
A45: =IF(LEFT($C45,SEARCH(" ",$C45&" "))=LEFT($C43,SEARCH(" ",$C43&" ")),N(A43),N(A43)+1) -> 7 | B45: A247 | C45: ANTI- ROUILLE EN 4KG GRIS IMP. | D45: 2 | E45: 5750 | F45: 2 | G45: 2
A47: =IF(LEFT($C47,SEARCH(" ",$C47&" "))=LEFT($C45,SEARCH(" ",$C45&" ")),N(A45),N(A45)+1) -> 8 | B47: A415 | C47: ANTICHOC ALU DE 60 CM DROIT | D47: 92 | E47: 2200 | F47: 123 | H47: 31
A49: =IF(LEFT($C49,SEARCH(" ",$C49&" "))=LEFT($C47,SEARCH(" ",$C47&" ")),N(A47),N(A47)+1) -> 9 | B49: A110 | C49: ANTI-CHOC ALU DE 50 CM | D49: 2 | E49: 2000 | F49: 2
A50: 9 | B50: A111 | C50: ANTI-CHOC ALU DE 60 CM | D50: 125 | E50: 2000 | F50: 104 | I50: 21
A51: 9 | B51: A112 | C51: ANTI-CHOC ALU DE 80 cm | D51: 1 | E51: 2100 | F51: 1
A52: 9 | B52: A585 | C52: ANTI-CHOC ALU DROIT 80CM | D52: 59 | E52: 3500 | F52: 56 | I52: 3
A54: =IF(LEFT($C54,SEARCH(" ",$C54&" "))=LEFT($C52,SEARCH(" ",$C52&" ")),N(A52),N(A52)+1) -> 10 | B54: A483 | C54: ANTIROUILLE B/R 4KG GOLD STAR | D54: 27 | E54: 8080 | F54: 27
A56: =IF(LEFT($C56,SEARCH(" ",$C56&" "))=LEFT($C54,SEARCH(" ",$C54&" ")),N(A54),N(A54)+1) -> 11 | B56: A394 | C56: ANTI-ROUILLE BR 1.2KG CAMERO PEINT | D56: 237 | E56: 1750 | F56: 238 | H56: 1
A57: 11 | B57: A259 | C57: ANTI-ROUILLE BRUN 1KG MPCC | D57: 110 | E57: 1950 | F57: 111 | G57: 1 | H57: 1
A58: 11 | B58: A268 | C58: ANTI-ROUILLE BRUN EN 2KG MPCC | D58: 65 | E58: 3875 | F58: 65
A59: 11 | B59: A286 | C59: ANTI-ROUILLE BRUN EN 5KG MPCC | D59: 16 | E59: 9900 | F59: 25 | H59: 9
A60: 11 | B60: A252 | C60: ANTI-ROUILLE MINIUM EN 5KG SMALTO | D60: 10 | E60: 10350 | F60: 10
A61: 11 | B61: A204 | C61: ANTI-ROUILLE ORANGE 2KG MPCC | D61: 1 | E61: 4300 | F61: 0 | I61: 1
A62: 11 | B62: A275 | C62: ANTI-ROUILLE ORANGE DE 5 KG MPCC | D62: 9 | E62: 10800 | F62: 0 | I62: 9
A64: =IF(LEFT($C64,SEARCH(" ",$C64&" "))=LEFT($C62,SEARCH(" ",$C62&" ")),N(A62),N(A62)+1) -> 12 | B64: A116 | C64: APPLIQUE MURAILLE NOIR REF 2TE 101 | D64: 1 | E64: 11500 | F64: 1
A65: 12 | B65: A122 | C65: APPLIQUE SANITAIRE REF 7524 | D65: 193 | E65: 2000 | F65: 193
A66: 12 | B66: A123 | C66: APPLIQUE SANITAIRE REF 7526 | D66: 175 | E66: 2500 | F66: 175
A68: =IF(LEFT($C68,SEARCH(" ",$C68&" "))=LEFT($C66,SEARCH(" ",$C66&" ")),N(A66),N(A66)+1) -> 13 | B68: A385 | C68: AQUAFIN-1K EN 25KG | D68: 4 | E68: 15750 | F68: 4 | G68: 4
A70: =IF(LEFT($C70,SEARCH(" ",$C70&" "))=LEFT($C68,SEARCH(" ",$C68&" ")),N(A68),N(A68)+1) -> 14 | B70: A587 | C70: ARDOISE PLASTIQUE JAVIS DE 16.5X24.5CM REFCH1008 | D70: 1193 | E70: 165 | F70: 1193
A72: =IF(LEFT($C72,SEARCH(" ",$C72&" "))=LEFT($C70,SEARCH(" ",$C70&" ")),N(A70),N(A70)+1) -> 15 | B72: A370 | C72: ARRACHE CLOU DE 40 | D72: 37 | E72: 900 | F72: 32 | I72: 5
A73: 15 | B73: A125 | C73: ARRACHE CLOU DE 50 | D73: 6 | E73: 1500 | F73: 9 | H73: 3
A74: 15 | B74: A126 | C74: ARRACHE CLOU DE 60 | D74: 34 | E74: 1300 | F74: 36 | H74: 2
A75: 15 | B75: A127 | C75: ARRACHE CLOU DE 70 | D75: 74 | E75: 2200 | F75: 6 | I75: 68
A76: 15 | B76: A128 | C76: ARRACHE CLOU DE 80 | D76: 36 | E76: 2000 | F76: 60 | H76: 24
A77: 15 | B77: A329 | C77: ARRACHE CLOU DE100 | D77: 92 | E77: 2300 | F77: 92
A79: =IF(LEFT($C79,SEARCH(" ",$C79&" "))=LEFT($C77,SEARCH(" ",$C77&" ")),N(A77),N(A77)+1) -> 16 | B79: A312 | C79: ASPIRATEUR ISC ARD 1425 EW 25L | D79: 1 | E79: 333000 | F79: 1
A81: =IF(LEFT($C81,SEARCH(" ",$C81&" "))=LEFT($C79,SEARCH(" ",$C79&" ")),N(A79),N(A79)+1) -> 17 | B81: A431 | C81: ASSIETTE TABLE ROYAL HERIT REF HM60730 | D81: 6 | E81: 12600 | F81: 6 | H81: =IF(F81>D81,F81-D81,"") ->  | I81: =IF(F81<D81,D81-F81,"") -> 
A82: 17 | B82: A435 | C82: ASSIETTE TABLE MODA CIRCUS REF XJP50656 EN 16PCES | D82: 2 | E82: 8820 | F82: 2
A83: 17 | B83: A438 | C83: ASSIETTE TABLE SERENADE REF SFG0800S EN 20PCES | D83: 1 | E83: 12600 | F83: 1
A84: =IF(LEFT($C84,SEARCH(" ",$C84&" "))=LEFT($C83,SEARCH(" ",$C83&" ")),N(A83),N(A83)+1) -> 17 | B84: A434 | C84: ASSIETTE TABLE SILVER ELEG REF LIZ13047 EN 20PCES | D84: 3 | E84: 12600 | F84: 3
A86: =IF(LEFT($C86,SEARCH(" ",$C86&" "))=LEFT($C84,SEARCH(" ",$C84&" ")),N(A84),N(A84)+1) -> 18 | B86: A176 | C86: ATTACHE ELECT DE 12/100PCES | D86: 25 | E86: 150 | F86: 25
A87: 18 | B87: A177 | C87: ATTACHE ELECT DE 14/100P | D87: 68 | E87: 500 | F87: 49 | I87: 19
A88: 18 | B88: A170 | C88: ATTACHE ELECT DE 5/100P | D88: 4 | E88: 700 | F88: 0 | I88: 4
A89: 18 | B89: A172 | C89: ATTACHE ELECT DE 7/100PCES | D89: 82 | E89: 125 | F89: 70 | I89: 12
A90: 18 | B90: A174 | C90: ATTACHE ELECT DE 9/100PCES | D90: 0 | E90: 150 | F90: 3 | H90: 3
A92: =IF(LEFT($C92,SEARCH(" ",$C92&" "))=LEFT($C90,SEARCH(" ",$C90&" ")),N(A90),N(A90)+1) -> 19 | B92: A567 | C92: AUGE MACON CAOUTCHOUC 30L REF7730 | D92: 15 | E92: 10500 | F92: 15
A93: 19 | B93: A182 | C93: AUGE MACON DE 25 L PLASTIQUE | D93: 14 | E93: 5000 | F93: 14
A94: 19 | B94: A162 | C94: AUGE MACON PROGOM DE 25L | D94: 19 | E94: 4000 | F94: 19
A95: 19 | B95: A301 | C95: AUGE MACON PROGON DE 35 L REF 7735 | D95: 1 | E95: 6000 | F95: 0 | I95: 1
A97: =IF(LEFT($C97,SEARCH(" ",$C97&" "))=LEFT($C95,SEARCH(" ",$C95&" ")),N(A95),N(A95)+1) -> 20 | B97: B31 | C97: BAIGNOIRE ACRYLIQUE REF A170 (1700X730X400MM) BLANC | D97: 2 | E97: 65000 | F97: 2
A98: 20 | B98: B31/1 | C98: BAIGNOIRE ACRYLIQUE REF B170 (1700X800X420MM) BLANC | D98: 2 | E98: 90000 | F98: 2
A100: =IF(LEFT($C100,SEARCH(" ",$C100&" "))=LEFT($C98,SEARCH(" ",$C98&" ")),N(A98),N(A98)+1) -> 21 | B100: B569 | C100: BALADEUSE AUTOMOBILE DE 10M | D100: 1 | E100: 1080 | F100: 1
A102: =IF(LEFT($C102,SEARCH(" ",$C102&" "))=LEFT($C100,SEARCH(" ",$C100&" ")),N(A100),N(A100)+1) -> 22 | B102: B36 | C102: BALAI GONDOLE+MANCHE | D102: 1311 | E102: 1200 | F102: 1311
A103: 22 | B103: B33 | C103: BALAI CANTONNIER NYLON ROUGE | D103: 243 | E103: 2500 | F103: 99 | I103: 144
A104: 22 | B104: B740 | C104: BALAI CANTONNIER NYLON ROUGE+FIXE MANCHE | D104: 217 | E104: 1600 | F104: 217
A105: 22 | B105: B1069 | C105: BALAI COCO ZEBRE REF 611601 | D105: 1 | E105: 900 | F105: 1
A106: 22 | B106: B788 | C106: BALAI PAILLE DE RIZ | D106: 187 | E106: 3300 | F106: 187
A108: =IF(LEFT($C108,SEARCH(" ",$C108&" "))=LEFT($C106,SEARCH(" ",$C106&" ")),N(A106),N(A106)+1) -> 23 | B108: B44 | C108: BALANCE A AIGUILLE 10KG(REF Z20A10G050 JAVIS) | D108: 9 | E108: 6500 | F108: 9
A109: 23 | B109: B45 | C109: BALANCE A AIGUILLE DE 15 KG(REF Z20A15G050 JAVIS) | D109: 10 | E109: 7500 | F109: 10
A110: 23 | B110: B46 | C110: BALANCE A AIGUILLE DE 20KG(REF Z20A20G100 JAVIS) | D110: 7 | E110: 8000 | F110: 7
A111: 23 | B111: B941 | C111: BALANCE PESE HOMME DIGITALE | D111: 3 | E111: 5500 | F111: 3 | G111: 1
A113: =IF(LEFT($C113,SEARCH(" ",$C113&" "))=LEFT($C111,SEARCH(" ",$C111&" ")),N(A111),N(A111)+1) -> 24 | B113: B3 | C113: BALLADEUSE ELECTRIQUE STIEL 5.2M REF. 54000 | D113: 47 | E113: 3750 | F113: 47
A115: =IF(LEFT($C115,SEARCH(" ",$C115&" "))=LEFT($C113,SEARCH(" ",$C113&" ")),N(A113),N(A113)+1) -> 25 | B115: B777 | C115: BALLAST VETO 250W | D115: 1 | E115: 11500 | F115: 1
A116: 25 | B116: B564 | C116: BALLAST VETO 400W | D116: 1 | E116: 11500 | F116: 1
A118: =IF(LEFT($C118,SEARCH(" ",$C118&" "))=LEFT($C116,SEARCH(" ",$C116&" ")),N(A116),N(A116)+1) -> 26 | B118: B60 | C118: BANDE ADHESIVE DE 19 CM | D118: 317 | E118: 175 | F118: 317
A119: 26 | B119: B61 | C119: BANDE ADHESIVE DE 25 CM | D119: 307 | E119: 200 | F119: 7 | I119: 300
A120: 26 | B120: B62 | C120: BANDE ADHESIVE DE 30 | D120: 64 | E120: 250 | F120: 64
A121: 26 | B121: B63 | C121: BANDE ADHESIVE DE 36 | D121: 15 | E121: 300 | F121: 15
A122: 26 | B122: B66 | C122: BANDE ADHESIVE DE 50 | D122: 147 | E122: 400 | F122: 147
A123: 26 | B123: B648 | C123: BANDE CAISSE44X70 | D123: 10 | E123: 275 | F123: 10
A124: 26 | B124: B731 | C124: BANDE D4ETANCHEITE ALU HAUTE RESISTANCE 75MMX10M | D124: 20 | E124: 6500 | F124: 20
A125: 26 | B125: B1035 | C125: BANDE JOINT POUR PANNEAUX DE PLACOPLATRE EB RLX DE 150M | D125: 6 | E125: 3800 | F125: 6
A126: 26 | B126: B646 | C126: BANDE THERMIQUE 57X40 | D126: 79 | E126: 300 | I126: 79 | L126: BPS
A127: 26 | B127: B670 | C127: BANDE THERMIQUE 57X56 | D127: 13 | E127: 1500 | I127: 13 | L127: BPS
A129: =IF(LEFT($C129,SEARCH(" ",$C129&" "))=LEFT($C127,SEARCH(" ",$C127&" ")),N(A127),N(A127)+1) -> 27 | B129: B74 | C129: BARRE A MINE DE 1.50M | D129: 16 | E129: 7300 | F129: 16 | H129: =IF(F129>D129,F129-D129,"") ->  | I129: =IF(F129<D129,D129-F129,"") -> 
A130: 27 | B130: B1092 | C130: BARRE A MINE DE 1.750M FRANCAIS | D130: 5 | E130: 22100 | F130: 4 | I130: 1
A131: 27 | B131: B75 | C131: BARRE A MINE DE 1.80 M | D131: 20 | E131: 10300 | F131: 3 | I131: 17
A132: 27 | B132: B76 | C132: BARRE A MINE DE 2M | D132: 19 | E132: 11000 | F132: 38 | H132: 19
A133: 27 | B133: B1093 | C133: BARRE AMINE DE 2M FRANCAIS | D133: 5 | E133: 28250 | F133: 4 | I133: 1
A135: =IF(LEFT($C135,SEARCH(" ",$C135&" "))=LEFT($C133,SEARCH(" ",$C133&" ")),N(A133),N(A133)+1) -> 28 | B135: B611 | C135: BATICIT A EAU BLANC DE 25 KG IMP. | D135: 1 | E135: 10500 | F135: 0 | I135: 1
A137: =IF(LEFT($C137,SEARCH(" ",$C137&" "))=LEFT($C135,SEARCH(" ",$C135&" ")),N(A135),N(A135)+1) -> 29 | B137: B192 | C137: BATILAC A HUILE GRIS FONCE DE 2,5 KG | D137: 0 | E137: 3000 | F137: 2 | H137: 2
A138: 29 | B138: B43 | C138: BATILAC A HUILE MARRON CLAIRE EN 2.5KG | D138: 5 | E138: 3500 | F138: 0 | I138: 5
A139: 29 | B139: B56 | C139: BATILAC A HUILE NOIR EN 2.5KG | D139: 1 | E139: 3500 | F139: 0 | I139: 1
A140: 29 | B140: B608 | C140: BATILAC A HUILE JAUNE CUBA EN 2.5KG | D140: 8 | E140: 3000 | F140: 16 | H140: 8
A141: 29 | B141: B620 | C141: BATILAC A HUILE ROUGE DE 2,5 KG | D141: 0 | E141: 3000 | F141: 2 | H141: 2
A142: 29 | B142: B649 | C142: BATILAC A HUILE VERT JARDIN EN 2.5KG | D142: 1 | E142: 3500 | F142: 5 | G142: 1 | H142: 4
A143: 29 | B143: B662 | C143: BATILAC A HUILE BLANC DE 2,5 KG | D143: 0 | E143: 3500 | F143: 1 | H143: 1
A144: 29 | B144: B944 | C144: BATILAC A HUILE GRIS FONCE DE 1KG | D144: 1 | E144: 1000 | F144: 0 | I144: 1
A145: 29 | B145: B947 | C145: BATILAC A HUILE VERT FONCE DE 1KG | D145: 2 | E145: 1000 | F145: 0 | I145: 2
A146: 29 | B146: B951 | C146: BATILAC A HUILE JAUNE CUBA DE 1KG | D146: 6 | E146: 1000 | F146: 6
A147: 29 | B147: B952 | C147: BATILAC A HUILE JAUNE OXYDE DE 1KG | D147: 0 | E147: 1000 | F147: 1 | H147: 1
A148: 29 | B148: B954 | C148: BATILAC A HUILE VERT POIVRON DE 2,5KG | D148: 3 | E148: 3000 | F148: 0 | I148: 3
A149: 29 | B149: B957 | C149: BATILAC HUILE MARRON FONCE EN 2.5KGS | D149: 58 | E149: 3000 | F149: 0 | I149: 58
A151: =IF(LEFT($C151,SEARCH(" ",$C151&" "))=LEFT($C149,SEARCH(" ",$C149&" ")),N(A149),N(A149)+1) -> 30 | B151: B585 | C151: BATITEINTE BLEU IMP EN 180 G | D151: 14 | E151: 800 | F151: 13 | I151: 1
A152: 30 | B152: B576 | C152: BATITEINTE JAUNE IMP EN 180 G | D152: 48 | E152: 800 | F152: 48
A153: 30 | B153: B96 | C153: BATITEINTE MARRON IMP. 180G | D153: 361 | E153: 800 | F153: 426 | H153: 65
A154: 30 | B154: B633 | C154: BATITEINTE NOIR IMP EN 180 G | D154: 71 | E154: 800 | F154: 69 | I154: 2
A155: 30 | B155: B631 | C155: BATITEINTE ROUGE IMP EN 180 G | D155: 53 | E155: 800 | F155: 47 | I155: 6
A157: =IF(LEFT($C157,SEARCH(" ",$C157&" "))=LEFT($C155,SEARCH(" ",$C155&" ")),N(A155),N(A155)+1) -> 31 | B157: B645 | C157: BATTERIE ONDULEUR 12V/12AP | D157: 2 | E157: 15350 | G157: 2 | I157: 2 | L157: BPS
A158: 31 | B158: B659 | C158: BATTERIE ONDULEUR 7H 12 AP | D158: 3 | E158: 12000 | G158: 3 | I158: 3 | L158: BPS
A160: =IF(LEFT($C160,SEARCH(" ",$C160&" "))=LEFT($C158,SEARCH(" ",$C158&" ")),N(A158),N(A158)+1) -> 32 | B160: B114 | C160: BIDET RAK BLANC 1 TROU | D160: 2 | E160: 23275 | F160: 2
A162: =IF(LEFT($C162,SEARCH(" ",$C162&" "))=LEFT($C160,SEARCH(" ",$C160&" ")),N(A160),N(A160)+1) -> 33 | B162: B1078 | C162: BIC BLEU BEIFA EN PQT DE 50 PIECES | D162: 1 | E162: 2200 | G162: 1 | H162: =IF(F162>D162,F162-D162,"") ->  | I162: =IF(F162<D162,D162-F162,"") -> 1 | L162: BPS
A163: 33 | B163: B732 | C163: BIC BLEU CH | D163: 144 | E163: 75 | G163: 144 | I163: 144 | L163: BPS
A164: =IF(LEFT($C164,SEARCH(" ",$C164&" "))=LEFT($C163,SEARCH(" ",$C163&" ")),N(A163),N(A163)+1) -> 33 | B164: B877 | C164: BIC BLEU EN PAQUET DE 50 | D164: 200 | E164: 1000 | G164: 200 | I164: 200 | L164: BPS
A165: 33 | B165: B879 | C165: BIC NOIR EN PAQUET DE 50 | D165: 198 | E165: 1000 | G165: 198 | I165: 198 | L165: BPS
A166: 33 | B166: B734 | C166: BIC ROUGE CH | D166: 100 | E166: 75 | G166: 100 | I166: 100 | L166: BPS
A167: 33 | B167: B878 | C167: BIC ROUGE EN PIECES | D167: 6350 | E167: 100 | G167: 6350 | I167: 6350 | L167: BPS
A169: =IF(LEFT($C169,SEARCH(" ",$C169&" "))=LEFT($C167,SEARCH(" ",$C167&" ")),N(A167),N(A167)+1) -> 34 | B169: B6111 | C169: BLOC CUBIQUE | D169: 10 | E169: 500 | I169: 10 | L169: BPS
A170: 34 | B170: B5766 | C170: BLOC NOTE GM | D170: 5 | E170: 620 | I170: 5 | L170: BPS
A171: 34 | B171: B573 | C171: BLOC NOTE PM | D171: 10 | E171: 325 | I171: 10 | L171: BPS
A173: =IF(LEFT($C173,SEARCH(" ",$C173&" "))=LEFT($C171,SEARCH(" ",$C171&" ")),N(A171),N(A171)+1) -> 35 | B173: B982 | C173: BOITE A RESSORT ROULEMENT EN ACIER DE 210X61X83 | D173: 1 | E173: 3450 | F173: 1
A174: 35 | B174: B132 | C174: BOITE DE DERIVATION 150 X 150 | D174: 70 | E174: 1900 | F174: 67 | I174: 3
A175: 35 | B175: B140 | C175: BOITE DE DERIVATION ENC 2316 | D175: 52 | E175: 1100 | F175: 1 | I175: 51
A176: 35 | B176: B586 | C176: BOITE DE DERIVATION ETANCHE 2100 | D176: 1 | E176: 950 | F176: 1
A177: 35 | B177: B1004 | C177: BOITE DE DERIVATION ETANCHE IP44 80X80X40 | D177: 49 | E177: 400 | F177: 50 | H177: 1
A178: 35 | B178: B129 | C178: BOITE DE DERIVATION ETANCHE IP55 190X140X70 | D178: 43 | E178: 2100 | F178: 43
A179: 35 | B179: B137 | C179: BOITE DE DERIVATION REF 2308 | D179: 1 | E179: 315 | F179: 1
A180: 35 | B180: B138 | C180: BOITE DE DERIVATION REF 2310 | D180: 359 | E180: 450 | F180: 370 | G180: 1 | H180: 11
A181: 35 | B181: B139 | C181: BOITE DE DERIVATION REF 2313 | D181: 0 | E181: 725 | F181: 45 | H181: 45
A182: 35 | B182: B141 | C182: BOITE DERIVATION ETANCHE IP55 240X190X90 | D182: 50 | E182: 4700 | F182: 50
A183: 35 | B183: B545 | C183: BOITE ETANCHE RONDE 80X50 | D183: 59 | E183: 575 | F183: 63 | H183: 4
A185: =IF(LEFT($C185,SEARCH(" ",$C185&" "))=LEFT($C183,SEARCH(" ",$C183&" ")),N(A183),N(A183)+1) -> 36 | B185: B1048 | C185: BOITIER KRISBOW REF E08SE8011C | D185: 14 | E185: 250 | F185: 0 | I185: 14
A186: 36 | B186: B612 | C186: BOITIER VENTOUSE LOURD | D186: 3417 | E186: 60 | F186: 3417 | G186: 2
A188: =IF(LEFT($C188,SEARCH(" ",$C188&" "))=LEFT($C186,SEARCH(" ",$C186&" ")),N(A186),N(A186)+1) -> 37 | B188: B6155 | C188: BON DE COMMANDE SQC 99501- 100500 | D188: 7 | E188: 1100 | I188: 7 | L188: BPS
A189: 37 | B189: B1046 | C189: BON DE MANUTENTION CAISSE DEPENSE | D189: 10 | E189: 240 | I189: 10 | L189: BPS
A190: 37 | B190: B5477 | C190: BON DE RECEPTION COMMANDE CLIENT | D190: 1 | E190: 550 | I190: 1 | L190: BPS
A191: 37 | B191: B29 | C191: BON D'ENTREE SQC | D191: 25 | E191: 550 | I191: 25 | L191: BPS
A193: =IF(LEFT($C193,SEARCH(" ",$C193&" "))=LEFT($C191,SEARCH(" ",$C191&" ")),N(A191),N(A191)+1) -> 38 | B193: B628 | C193: BONDE EVIER SIMPLE 2BACS | D193: 30 | E193: 2150 | F193: 30 | G193: 30
A194: 38 | B194: B152 | C194: BONDE LAVABO + CHAINE INOX LY468 | D194: 52 | E194: 1700 | F194: 50 | G194: 21 | I194: 2
A195: 38 | B195: B154 | C195: BONDE POUR RECEVEUR DE DOUCHE | D195: 12 | E195: 2020 | F195: 0 | I195: 12
A197: =IF(LEFT($C197,SEARCH(" ",$C197&" "))=LEFT($C195,SEARCH(" ",$C195&" ")),N(A195),N(A195)+1) -> 39 | B197: B805 | C197: BOTTE DE SECU EN PVC P40 | D197: 9 | E197: 10350 | F197: 9 | H197: =IF(F197>D197,F197-D197,"") ->  | I197: =IF(F197<D197,D197-F197,"") -> 
A198: 39 | B198: B806 | C198: BOTTE DE SECU EN PVC P41 | D198: 10 | E198: 10350 | F198: 2 | I198: 8
A199: 39 | B199: B807 | C199: BOTTE DE SECU EN PVC P42 | D199: 1 | E199: 10350 | F199: 0 | I199: 1
A200: 39 | B200: B808 | C200: BOTTE DE SECU EN PVC P43 | D200: 2 | E200: 10350 | F200: 0 | I200: 2
A201: 39 | B201: B809 | C201: BOTTE DE SECU EN PVC P44 | D201: 1 | E201: 10350 | F201: 0 | I201: 1
A202: 39 | B202: B818 | C202: BOTTE DE SECU EN PVC P46 | D202: 1 | E202: 10350 | F202: 0 | I202: 1
A203: 39 | B203: B574 | C203: BOTTE DE SECURITE BELLOTA DE 40 | D203: 19 | E203: 9000 | F203: 18 | G203: 1 | I203: 1
A204: 39 | B204: B577 | C204: BOTTE DE SECURITE BELLOTA DE 41 | D204: 25 | E204: 9000 | F204: 36 | G204: 3 | H204: 11
A205: 39 | B205: B88 | C205: BOTTE DE SECURITE BELLOTA DE 42 | D205: 8 | E205: 9000 | F205: 8 | G205: 1
A206: 39 | B206: B120 | C206: BOTTE DE SECURITE BELLOTA DE 43 | D206: 4 | E206: 9000 | F206: 5 | G206: 1 | H206: 1
A207: 39 | B207: B157 | C207: BOTTE DE SECURITE ITALY S5 DE 40 | D207: 6 | E207: 11500 | F207: 6
A208: 39 | B208: B737 | C208: BOTTE DE SECURITE ITALY S5 DE 41 | D208: 24 | E208: 11500 | F208: 12 | I208: 12
A209: 39 | B209: B158 | C209: BOTTE DE SECURITE ITALY S5 DE 42 | D209: 30 | E209: 11500 | F209: 30
A210: 39 | B210: B738 | C210: BOTTE DE SECURITE ITALY S5 DE 43 | D210: 24 | E210: 11500 | F210: 25 | H210: 1
A211: 39 | B211: B739 | C211: BOTTE DE SECURITE ITALY S5 DE 44 | D211: 35 | E211: 11500 | F211: 33 | I211: 2
A212: 39 | B212: B160 | C212: BOTTE DE SECURITE ITALY S5 DE 45 | D212: 33 | E212: 11500 | F212: 30 | I212: 3
A213: 39 | B213: B161 | C213: BOTTE DE SECURITE ITALY S5 DE 46 | D213: 18 | E213: 11500 | F213: 18
A214: 39 | B214: B638 | C214: BOTTE PVC ITALY 41 | D214: 78 | E214: 4500 | F214: 15 | I214: 63
A215: 39 | B215: B824 | C215: BOTTE PVC ITALY 44 | D215: 277 | E215: 4500 | F215: 347 | H215: 70
A216: 39 | B216: B823 | C216: BOTTE PVC ITALY 43 | D216: 244 | E216: 4500 | F216: 228 | I216: 16
A217: 39 | B217: B729 | C217: BOTTE PVC ITALY 45 | D217: 125 | E217: 4500 | F217: 136 | H217: 11
A218: 39 | B218: B811 | C218: BOTTE PVC ITALY 40 | D218: 3 | E218: 4500 | F218: 5 | H218: 2
A219: 39 | B219: B822 | C219: BOTTE PVC ITALY 42 | D219: 267 | E219: 4500 | F219: 283 | H219: 16
A221: =IF(LEFT($C221,SEARCH(" ",$C221&" "))=LEFT($C219,SEARCH(" ",$C219&" ")),N(A219),N(A219)+1) -> 40 | B221: B168 | C221: BOUCHON GALVA FEMELLE 15/21 | D221: 1 | E221: 45 | F221: 1
A222: 40 | B222: B169 | C222: BOUCHON GALVA FEMELLE 20/27 | D222: 242 | E222: 65 | F222: 154 | I222: 88
A223: 40 | B223: B170 | C223: BOUCHON GALVA FEMELLE 26/34 | D223: 1 | E223: 120 | F223: 5 | H223: 4
A224: 40 | B224: B519 | C224: BOUCHON GALVA FEMELLE 33/42 | D224: 45 | E224: 140 | F224: 45
A225: 40 | B225: B579 | C225: BOUCHON GALVA FEMELLE 40/49 | D225: 13 | E225: 185 | F225: 14 | H225: 1
A226: 40 | B226: B580 | C226: BOUCHON GALVA FEMELLE DE 50/60 | D226: 1 | E226: 470 | F226: 1
A227: 40 | B227: B171 | C227: BOUCHON GALVA MALE 15/21 | D227: 6 | E227: 45 | F227: 0 | I227: 6
A228: 40 | B228: B172 | C228: BOUCHON GALVA MALE 20/27 | D228: 399 | E228: 50 | F228: 441 | H228: 42
A229: 40 | B229: B173 | C229: BOUCHON GALVA MALE 26/34 | D229: 67 | E229: 80 | F229: 69 | H229: 2
A230: 40 | B230: B520 | C230: BOUCHON GALVA MALE 33/42 | D230: 17 | E230: 150 | F230: 18 | H230: 1
A231: 40 | B231: B521 | C231: BOUCHON GALVA MALE 40/49 | D231: 1 | E231: 225 | F231: 1
A232: 40 | B232: B1040 | C232: BOUCHON OREILLE VENITEX REF CONICAP 01 | D232: 161 | E232: 500 | F232: 174 | H232: =IF(F232>D232,F232-D232,"") -> 13 | I232: =IF(F232<D232,D232-F232,"") -> 
A233: 40 | B233: B174 | C233: BOUCHON PVC DE 32 | D233: 6 | E233: 200 | F233: 5 | I233: 1
A234: 40 | B234: B175 | C234: BOUCHON PVC DE 40 | D234: 378 | E234: 250 | F234: 378
A235: =IF(LEFT($C235,SEARCH(" ",$C235&" "))=LEFT($C234,SEARCH(" ",$C234&" ")),N(A234),N(A234)+1) -> 40 | B235: B176 | C235: BOUCHON PVC DE 50 | D235: 179 | E235: 300 | F235: 178 | I235: 1
A236: 40 | B236: B177 | C236: BOUCHON PVC DE 63 | D236: 196 | E236: 500 | F236: 193 | I236: 3
A237: 40 | B237: B178 | C237: BOUCHON PVC DE 100 | D237: 453 | E237: 1100 | F237: 462 | H237: 9
A238: 40 | B238: B179 | C238: BOUCHON PVC DE 110 | D238: 103 | E238: 1000 | F238: 103
A239: 40 | B239: B181 | C239: BOUCHON PVC DE 160 | D239: 3 | E239: 5145 | F239: 3
... 2076 more rows

Sheet Feuil7
A1: 2016-12-01 | B1: AGDOK | C1: AGDOK1612SON00000007 | D1: CDIVDOK | E1: COMPANE
A2: 2016-12-01 | B2: AGDOK | C2: AGDOK1612SON00000009 | D2: CDIVDOK | E2: CLIENT DIVERS NDOKOTI
A3: 2016-12-03 | B3: AGDOK | C3: AGDOK1612SON00000127 | D3: CDIVDOK | E3: NKWEKAM BENOIT
A4: 2016-12-07 | B4: AGDOK | C4: AGDOK1612SON00000227 | D4: CDIVDOK | E4: BETON CONSTRUCTION
A5: 2016-12-09 | B5: AGDOK | C5: AGDOK1612SON00000325 | D5: CDIVDOK | E5: CLIENT DIVERS NDOKOTI
A6: 2016-12-12 | B6: AGDOK | C6: AGDOK1612SON00000380 | D6: CDIVDOK | E6: M SANDJOCK
A7: 2016-12-16 | B7: AGDOK | C7: AGDOK1612SON00000497 | D7: M099800009906W | E7: AFRIQUE MONTAGNE INDUSTRIES
A8: 2016-12-17 | B8: AGDOK | C8: AGDOK1612SON00000516 | D8: CDIVDOK | E8: JOSEPH
A9: 2016-12-17 | B9: AGDOK | C9: AGDOK1612SON00000521 | D9: CDIVDOK | E9: TAGNE
A10: 2016-12-19 | B10: AGDOK | C10: AGDOK1612SON00000599 | D10: CDIVDOK | E10: JUNIOR
A11: 2016-12-20 | B11: AGDOK | C11: AGDOK1612SON00000710 | D11: CDIVDOK | E11: ROGER
A12: 2016-12-20 | B12: AGDOK | C12: AGDOK1612SON00000718 | D12: CDIVDOK | E12: CLIENT DIVERS NDOKOTI
A13: 2016-12-20 | B13: AGDOK | C13: AGDOK1612SON00000737 | D13: CDIVDOK | E13: MME MALONGA
A14: 2016-12-21 | B14: AGDOK | C14: AGDOK1612SON00000870 | D14: CDIVDOK | E14: ROSTAND
A15: 2016-12-22 | B15: AGDOK | C15: AGDOK1612SON00000934 | D15: CDIVDOK | E15: RAOUL
A16: 2016-12-22 | B16: AGDOK | C16: AGDOK1612SON00000941 | D16: CDIVDOK | E16: M NTAMACK EMMANUEL
A17: 2016-12-24 | B17: AGDOK | C17: AGDOK1612SON00001075 | D17: CDIVDOK | E17: CLIENT DIVERS NDOKOTI
A18: 2016-12-26 | B18: AGDOK | C18: AGDOK1612SON00001122 | D18: CDIVDOK | E18: BERNARD
A19: 2016-12-29 | B19: AGDOK | C19: AGDOK1612SON00001373 | D19: CDIVDOK | E19: NATHALIE
A20: 2016-12-30 | B20: AGDOK | C20: AGDOK1612SON00001415 | D20: CDIVDOK | E20: TONTON LEOPOLD
A21: 2017-01-03 | B21: AGDOK | C21: AGDOK1701SON00000047 | D21: CDIVDOK | E21: CLIENT DIVERS NDOKOTI
A22: 2017-01-05 | B22: AGDOK | C22: AGDOK1701SON00000264 | D22: CDIVDOK | E22: JOSEPH
A23: 2017-01-05 | B23: AGDOK | C23: AGDOK1701SON00000304 | D23: CDIVDOK | E23: AFRICA BULDING
A24: 2017-01-05 | B24: AGDOK | C24: AGDOK1701SON00000305 | D24: CDIVDOK | E24: AFRIC BULDING
A25: 2017-01-14 | B25: AGDOK | C25: AGDOK1701SON00000947 | D25: CDIVDOK | E25: DENIS
A26: 2017-01-14 | B26: AGDOK | C26: AGDOK1701SON00000958 | D26: CDIVDOK | E26: CLIENT DIVERS NDOKOTI
A27: 2017-01-14 | B27: AGDOK | C27: AGDOK1701SON00000981 | D27: CDIVDOK | E27: NANA
A28: 2017-01-17 | B28: AGDOK | C28: AGDOK1701SON00001114 | D28: NDJNG210985 | E28: NDJA NGUI
A29: 2017-01-18 | B29: AGDOK | C29: AGDOK1701SON00001240 | D29: CDIVDOK | E29: GEROME
A30: 2017-01-18 | B30: AGDOK | C30: AGDOK1701SON00001291 | D30: CDIVDOK | E30: AIME

Sheet Feuil8
A1: Famille | B1: Designations | C1: Plus | D1: Moins | E1: Entrées | F1: Sorties
A3: =IF(LEFT($B3,SEARCH(" ",$B3&" "))=LEFT($B2,SEARCH(" ",$B2&" ")),N(A2),N(A2)+1) -> 1 | B3: bonbons rouge caramel | D3: 21 | F3: 20
A4: =IF(LEFT($B4,SEARCH(" ",$B4&" "))=LEFT($B3,SEARCH(" ",$B3&" ")),N(A3),N(A3)+1) -> 1 | B4: bonbons vert | C4: 21 | E4: 21
A5: 1 | B5: bonbons vert citron | D5: 14
A6: 1 | B6: bonbons vert citron | C6: 13 | E6: 13
A7: =IF(LEFT($B7,SEARCH(" ",$B7&" "))=LEFT($B6,SEARCH(" ",$B6&" ")),N(A6),N(A6)+1) -> 2 | B7: chocolats croustillant noir | F7: 13
A8: 2 | B8: chocolats croustillant
A9: 2 | B9: chocolats en pate
A10: =IF(LEFT($B10,SEARCH(" ",$B10&" "))=LEFT($B9,SEARCH(" ",$B9&" ")),N(A9),N(A9)+1) -> 3 | B10: sucre en poudre de 1kg
A11: 3 | B11: sucre en paquet de 1,5Kg
A12: 3 | B12: sucre en paquet de 2,5Kg
A13: 3 | B13: sucre en paquet de 2,5Kg
A14: =IF(LEFT($B14,SEARCH(" ",$B14&" "))=LEFT($B13,SEARCH(" ",$B13&" ")),N(A13),N(A13)+1) -> 4 | B14: fromage camenbert
A15: 4 | B15: fromage de Belgique
A16: 4 | B16: fromage de Belgique
A17: =IF(LEFT($B17,SEARCH(" ",$B17&" "))=LEFT($B16,SEARCH(" ",$B16&" ")),N(A16),N(A16)+1) -> 5 | B17: oranges du Cameroun
A18: 5 | B18: oranges filet de 25kg
A19: 5 | B19: oranges importe
A20: 5 | B20: oranges importe
A21: 5 | B21: oranges de France

Sheet Feuil9
D1: =fnNbCellulesCouleur(A1:C6,A2) -> 7
